Workbook

Sheet 은평구총괄
B1: 은평구 등록장애인 현황 (2024. 8월 말 기준)
B3: 서울특별시 은평구 | J3: (단위 : 명)
B5: 자치구 | C5: 장애유형 | D5: 합계 | G5: 심한 장애 | J5: 심하지 않은 장애
D6: 계 | E6: 남 | F6: 여 | G6: 계 | H6: 남 | I6: 여 | J6: 계 | K6: 남 | L6: 여
B7: 은평구 | C7: 합 계 | D7: 21369 | E7: 12444 | F7: 8925 | G7: 8107 | H7: 5074 | I7: 3033 | J7: 13262 | K7: 7370 | L7: 5892
C8: 지체 | D8: 8420 | E8: 4596 | F8: 3824 | G8: 1374 | H8: 881 | I8: 493 | J8: 7046 | K8: 3715 | L8: 3331
C9: 시각 | D9: 2276 | E9: 1331 | F9: 945 | G9: 431 | H9: 235 | I9: 196 | J9: 1845 | K9: 1096 | L9: 749
C10: 청각 | D10: 3359 | E10: 1867 | F10: 1492 | G10: 634 | H10: 320 | I10: 314 | J10: 2725 | K10: 1547 | L10: 1178
C11: 언어 | D11: 170 | E11: 123 | F11: 47 | G11: 90 | H11: 65 | I11: 25 | J11: 80 | K11: 58 | L11: 22
C12: 지적 | D12: 1875 | E12: 1231 | F12: 644 | G12: 1875 | H12: 1231 | I12: 644 | J12: 0 | K12: 0 | L12: 0
C13: 뇌병변 | D13: 2121 | E13: 1251 | F13: 870 | G13: 1190 | H13: 677 | I13: 513 | J13: 931 | K13: 574 | L13: 357
C14: 자폐성 | D14: 473 | E14: 395 | F14: 78 | G14: 473 | H14: 395 | I14: 78 | J14: 0 | K14: 0 | L14: 0
C15: 정신 | D15: 1128 | E15: 691 | F15: 437 | G15: 1102 | H15: 677 | I15: 425 | J15: 26 | K15: 14 | L15: 12
C16: 신장 | D16: 952 | E16: 582 | F16: 370 | G16: 750 | H16: 468 | I16: 282 | J16: 202 | K16: 114 | L16: 88
C17: 심장 | D17: 44 | E17: 26 | F17: 18 | G17: 30 | H17: 14 | I17: 16 | J17: 14 | K17: 12 | L17: 2
C18: 호흡기 | D18: 115 | E18: 82 | F18: 33 | G18: 110 | H18: 81 | I18: 29 | J18: 5 | K18: 1 | L18: 4
C19: 간 | D19: 162 | E19: 107 | F19: 55 | G19: 7 | H19: 5 | I19: 2 | J19: 155 | K19: 102 | L19: 53
C20: 안면 | D20: 24 | E20: 14 | F20: 10 | G20: 9 | H20: 6 | I20: 3 | J20: 15 | K20: 8 | L20: 7
C21: 장루.요루 | D21: 182 | E21: 115 | F21: 67 | G21: 20 | H21: 13 | I21: 7 | J21: 162 | K21: 102 | L21: 60
C22: 뇌전증 | D22: 68 | E22: 33 | F22: 35 | G22: 12 | H22: 6 | I22: 6 | J22: 56 | K22: 27 | L22: 29

Sheet 유형별
A1: 은평구 동별 장애인현황(유형별) (2024. 7월말)
A2: 동별 | B2: 합계 | E2: 지체 | H2: 시각 | K2: 청각 | N2: 언어 | Q2: 지적 | T2: 뇌병변 | W2: 자폐 | Z2: 정신 | AC2: 신장 | AF2: 심장 | AI2: 호흡기 | AL2: 간 | AO2: 안면 | AR2: 장루.요루 | AU2: 뇌전증
B3: 합계 | C3: 남성 | D3: 여성 | E3: 소계 | F3: 남성 | G3: 여성 | H3: 소계 | I3: 남성 | J3: 여성 | K3: 소계 | L3: 남성 | M3: 여성 | N3: 소계 | O3: 남성 | P3: 여성 | Q3: 소계 | R3: 남성 | S3: 여성 | T3: 소계 | U3: 남성 | V3: 여성 | W3: 소계 | X3: 남성 | Y3: 여성 | Z3: 소계 | AA3: 남성 | AB3: 여성 | AC3: 소계 | AD3: 남성 | AE3: 여성 | AF3: 소계 | AG3: 남성 | AH3: 여성 | AI3: 소계 | AJ3: 남성 | AK3: 여성 | AL3: 소계 | AM3: 남성 | AN3: 여성 | AO3: 소계 | AP3: 남성 | AQ3: 여성 | AR3: 소계 | AS3: 남성 | AT3: 여성 | AU3: 소계 | AV3: 남성 | AW3: 여성
A4: 합 계 | B4: 21369 | C4: 12444 | D4: 8925 | E4: 8420 | F4: 4596 | G4: 3824 | H4: 2276 | I4: 1331 | J4: 945 | K4: 3359 | L4: 1867 | M4: 1492 | N4: 170 | O4: 123 | P4: 47 | Q4: 1875 | R4: 1231 | S4: 644 | T4: 2121 | U4: 1251 | V4: 870 | W4: 473 | X4: 395 | Y4: 78 | Z4: 1128 | AA4: 691 | AB4: 437 | AC4: 952 | AD4: 582 | AE4: 370 | AF4: 44 | AG4: 26 | AH4: 18 | AI4: 115 | AJ4: 82 | AK4: 33 | AL4: 162 | AM4: 107 | AN4: 55 | AO4: 24 | AP4: 14 | AQ4: 10 | AR4: 182 | AS4: 115 | AT4: 67 | AU4: 68 | AV4: 33 | AW4: 35
A5: 녹번동 | B5: 1623 | C5: 926 | D5: 697 | E5: 672 | F5: 368 | G5: 304 | H5: 177 | I5: 112 | J5: 65 | K5: 290 | L5: 154 | M5: 136 | N5: 17 | O5: 12 | P5: 5 | Q5: 117 | R5: 73 | S5: 44 | T5: 162 | U5: 83 | V5: 79 | W5: 22 | X5: 16 | Y5: 6 | Z5: 62 | AA5: 36 | AB5: 26 | AC5: 67 | AD5: 44 | AE5: 23 | AF5: 2 | AG5: 1 | AH5: 1 | AI5: 6 | AJ5: 4 | AK5: 2 | AL5: 8 | AM5: 7 | AN5: 1 | AO5: 3 | AP5: 3 | AQ5: 0 | AR5: 15 | AS5: 10 | AT5: 5 | AU5: 3 | AV5: 3 | AW5: 0
A6: 불광1동 | B6: 1625 | C6: 914 | D6: 711 | E6: 664 | F6: 365 | G6: 299 | H6: 191 | I6: 112 | J6: 79 | K6: 266 | L6: 152 | M6: 114 | N6: 12 | O6: 9 | P6: 3 | Q6: 104 | R6: 59 | S6: 45 | T6: 152 | U6: 81 | V6: 71 | W6: 29 | X6: 25 | Y6: 4 | Z6: 68 | AA6: 36 | AB6: 32 | AC6: 95 | AD6: 51 | AE6: 44 | AF6: 3 | AG6: 1 | AH6: 2 | AI6: 7 | AJ6: 6 | AK6: 1 | AL6: 18 | AM6: 10 | AN6: 8 | AO6: 2 | AP6: 1 | AQ6: 1 | AR6: 10 | AS6: 4 | AT6: 6 | AU6: 4 | AV6: 2 | AW6: 2
A7: 불광2동 | B7: 1427 | C7: 845 | D7: 582 | E7: 543 | F7: 305 | G7: 238 | H7: 165 | I7: 109 | J7: 56 | K7: 258 | L7: 152 | M7: 106 | N7: 17 | O7: 15 | P7: 2 | Q7: 112 | R7: 70 | S7: 42 | T7: 126 | U7: 76 | V7: 50 | W7: 26 | X7: 26 | Y7: 0 | Z7: 71 | AA7: 29 | AB7: 42 | AC7: 64 | AD7: 39 | AE7: 25 | AF7: 4 | AG7: 4 | AH7: 0 | AI7: 2 | AJ7: 2 | AK7: 0 | AL7: 8 | AM7: 5 | AN7: 3 | AO7: 2 | AP7: 1 | AQ7: 1 | AR7: 19 | AS7: 8 | AT7: 11 | AU7: 10 | AV7: 4 | AW7: 6
A8: 갈현1동 | B8: 689 | C8: 383 | D8: 306 | E8: 273 | F8: 143 | G8: 130 | H8: 88 | I8: 51 | J8: 37 | K8: 110 | L8: 60 | M8: 50 | N8: 2 | O8: 1 | P8: 1 | Q8: 56 | R8: 34 | S8: 22 | T8: 59 | U8: 40 | V8: 19 | W8: 15 | X8: 13 | Y8: 2 | Z8: 40 | AA8: 17 | AB8: 23 | AC8: 29 | AD8: 14 | AE8: 15 | AF8: 2 | AG8: 1 | AH8: 1 | AI8: 2 | AJ8: 2 | AK8: 0 | AL8: 6 | AM8: 3 | AN8: 3 | AO8: 0 | AP8: 0 | AQ8: 0 | AR8: 6 | AS8: 3 | AT8: 3 | AU8: 1 | AV8: 1 | AW8: 0
A9: 갈현2동 | B9: 1274 | C9: 739 | D9: 535 | E9: 525 | F9: 292 | G9: 233 | H9: 127 | I9: 80 | J9: 47 | K9: 190 | L9: 112 | M9: 78 | N9: 19 | O9: 16 | P9: 3 | Q9: 116 | R9: 71 | S9: 45 | T9: 105 | U9: 59 | V9: 46 | W9: 21 | X9: 15 | Y9: 6 | Z9: 74 | AA9: 31 | AB9: 43 | AC9: 62 | AD9: 40 | AE9: 22 | AF9: 5 | AG9: 2 | AH9: 3 | AI9: 7 | AJ9: 6 | AK9: 1 | AL9: 12 | AM9: 8 | AN9: 4 | AO9: 0 | AP9: 0 | AQ9: 0 | AR9: 9 | AS9: 7 | AT9: 2 | AU9: 2 | AV9: 0 | AW9: 2
A10: 구산동 | B10: 2127 | C10: 1469 | D10: 658 | E10: 598 | F10: 336 | G10: 262 | H10: 159 | I10: 97 | J10: 62 | K10: 246 | L10: 143 | M10: 103 | N10: 15 | O10: 11 | P10: 4 | Q10: 396 | R10: 307 | S10: 89 | T10: 223 | U10: 161 | V10: 62 | W10: 44 | X10: 37 | Y10: 7 | Z10: 312 | AA10: 276 | AB10: 36 | AC10: 63 | AD10: 46 | AE10: 17 | AF10: 0 | AG10: 0 | AH10: 0 | AI10: 26 | AJ10: 19 | AK10: 7 | AL10: 16 | AM10: 15 | AN10: 1 | AO10: 3 | AP10: 1 | AQ10: 2 | AR10: 19 | AS10: 16 | AT10: 3 | AU10: 7 | AV10: 4 | AW10: 3
A11: 대조동 | B11: 1219 | C11: 702 | D11: 517 | E11: 497 | F11: 277 | G11: 220 | H11: 142 | I11: 77 | J11: 65 | K11: 208 | L11: 123 | M11: 85 | N11: 8 | O11: 6 | P11: 2 | Q11: 67 | R11: 46 | S11: 21 | T11: 120 | U11: 69 | V11: 51 | W11: 25 | X11: 20 | Y11: 5 | Z11: 65 | AA11: 29 | AB11: 36 | AC11: 59 | AD11: 36 | AE11: 23 | AF11: 3 | AG11: 1 | AH11: 2 | AI11: 6 | AJ11: 5 | AK11: 1 | AL11: 4 | AM11: 3 | AN11: 1 | AO11: 1 | AP11: 1 | AQ11: 0 | AR11: 10 | AS11: 8 | AT11: 2 | AU11: 4 | AV11: 1 | AW11: 3
A12: 응암1동 | B12: 1323 | C12: 727 | D12: 596 | E12: 573 | F12: 296 | G12: 277 | H12: 150 | I12: 84 | J12: 66 | K12: 228 | L12: 108 | M12: 120 | N12: 8 | O12: 5 | P12: 3 | Q12: 70 | R12: 43 | S12: 27 | T12: 132 | U12: 85 | V12: 47 | W12: 29 | X12: 25 | Y12: 4 | Z12: 46 | AA12: 29 | AB12: 17 | AC12: 53 | AD12: 28 | AE12: 25 | AF12: 5 | AG12: 3 | AH12: 2 | AI12: 5 | AJ12: 5 | AK12: 0 | AL12: 9 | AM12: 5 | AN12: 4 | AO12: 2 | AP12: 2 | AQ12: 0 | AR12: 10 | AS12: 8 | AT12: 2 | AU12: 3 | AV12: 1 | AW12: 2
A13: 응암2동 | B13: 975 | C13: 538 | D13: 437 | E13: 376 | F13: 203 | G13: 173 | H13: 92 | I13: 48 | J13: 44 | K13: 154 | L13: 77 | M13: 77 | N13: 8 | O13: 6 | P13: 2 | Q13: 69 | R13: 44 | S13: 25 | T13: 105 | U13: 55 | V13: 50 | W13: 36 | X13: 31 | Y13: 5 | Z13: 50 | AA13: 32 | AB13: 18 | AC13: 51 | AD13: 24 | AE13: 27 | AF13: 3 | AG13: 2 | AH13: 1 | AI13: 9 | AJ13: 6 | AK13: 3 | AL13: 8 | AM13: 3 | AN13: 5 | AO13: 2 | AP13: 0 | AQ13: 2 | AR13: 6 | AS13: 3 | AT13: 3 | AU13: 6 | AV13: 4 | AW13: 2
A14: 응암3동 | B14: 1302 | C14: 737 | D14: 565 | E14: 521 | F14: 286 | G14: 235 | H14: 147 | I14: 79 | J14: 68 | K14: 235 | L14: 120 | M14: 115 | N14: 8 | O14: 6 | P14: 2 | Q14: 90 | R14: 60 | S14: 30 | T14: 139 | U14: 86 | V14: 53 | W14: 18 | X14: 14 | Y14: 4 | Z14: 51 | AA14: 26 | AB14: 25 | AC14: 54 | AD14: 39 | AE14: 15 | AF14: 3 | AG14: 2 | AH14: 1 | AI14: 7 | AJ14: 5 | AK14: 2 | AL14: 13 | AM14: 4 | AN14: 9 | AO14: 0 | AP14: 0 | AQ14: 0 | AR14: 11 | AS14: 9 | AT14: 2 | AU14: 5 | AV14: 1 | AW14: 4
A15: 역촌동 | B15: 2141 | C15: 1198 | D15: 943 | E15: 887 | F15: 457 | G15: 430 | H15: 203 | I15: 119 | J15: 84 | K15: 338 | L15: 191 | M15: 147 | N15: 14 | O15: 6 | P15: 8 | Q15: 196 | R15: 125 | S15: 71 | T15: 229 | U15: 138 | V15: 91 | W15: 39 | X15: 32 | Y15: 7 | Z15: 92 | AA15: 41 | AB15: 51 | AC15: 97 | AD15: 60 | AE15: 37 | AF15: 1 | AG15: 1 | AH15: 0 | AI15: 13 | AJ15: 7 | AK15: 6 | AL15: 11 | AM15: 7 | AN15: 4 | AO15: 1 | AP15: 1 | AQ15: 0 | AR15: 14 | AS15: 9 | AT15: 5 | AU15: 6 | AV15: 4 | AW15: 2
A16: 신사1동 | B16: 1237 | C16: 745 | D16: 492 | E16: 485 | F16: 290 | G16: 195 | H16: 155 | I16: 87 | J16: 68 | K16: 170 | L16: 111 | M16: 59 | N16: 15 | O16: 8 | P16: 7 | Q16: 148 | R16: 86 | S16: 62 | T16: 110 | U16: 60 | V16: 50 | W16: 25 | X16: 20 | Y16: 5 | Z16: 50 | AA16: 33 | AB16: 17 | AC16: 52 | AD16: 36 | AE16: 16 | AF16: 1 | AG16: 1 | AH16: 0 | AI16: 6 | AJ16: 3 | AK16: 3 | AL16: 5 | AM16: 4 | AN16: 1 | AO16: 2 | AP16: 1 | AQ16: 1 | AR16: 9 | AS16: 4 | AT16: 5 | AU16: 4 | AV16: 1 | AW16: 3
A17: 신사2동 | B17: 892 | C17: 513 | D17: 379 | E17: 373 | F17: 199 | G17: 174 | H17: 88 | I17: 58 | J17: 30 | K17: 130 | L17: 69 | M17: 61 | N17: 7 | O17: 7 | P17: 0 | Q17: 84 | R17: 48 | S17: 36 | T17: 78 | U17: 47 | V17: 31 | W17: 21 | X17: 17 | Y17: 4 | Z17: 30 | AA17: 20 | AB17: 10 | AC17: 55 | AD17: 33 | AE17: 22 | AF17: 3 | AG17: 1 | AH17: 2 | AI17: 7 | AJ17: 5 | AK17: 2 | AL17: 3 | AM17: 2 | AN17: 1 | AO17: 1 | AP17: 1 | AQ17: 0 | AR17: 8 | AS17: 3 | AT17: 5 | AU17: 4 | AV17: 3 | AW17: 1
A18: 증산동 | B18: 756 | C18: 443 | D18: 313 | E18: 323 | F18: 182 | G18: 141 | H18: 65 | I18: 37 | J18: 28 | K18: 132 | L18: 78 | M18: 54 | N18: 5 | O18: 2 | P18: 3 | Q18: 52 | R18: 34 | S18: 18 | T18: 70 | U18: 37 | V18: 33 | W18: 17 | X18: 17 | Y18: 0 | Z18: 34 | AA18: 17 | AB18: 17 | AC18: 36 | AD18: 22 | AE18: 14 | AF18: 1 | AG18: 1 | AH18: 0 | AI18: 2 | AJ18: 2 | AK18: 0 | AL18: 8 | AM18: 7 | AN18: 1 | AO18: 1 | AP18: 0 | AQ18: 1 | AR18: 6 | AS18: 6 | AT18: 0 | AU18: 4 | AV18: 1 | AW18: 3
A19: 수색동 | B19: 823 | C19: 449 | D19: 374 | E19: 316 | F19: 166 | G19: 150 | H19: 100 | I19: 55 | J19: 45 | K19: 128 | L19: 69 | M19: 59 | N19: 4 | O19: 4 | P19: 0 | Q19: 67 | R19: 45 | S19: 22 | T19: 99 | U19: 47 | V19: 52 | W19: 24 | X19: 20 | Y19: 4 | Z19: 28 | AA19: 12 | AB19: 16 | AC19: 32 | AD19: 18 | AE19: 14 | AF19: 1 | AG19: 0 | AH19: 1 | AI19: 3 | AJ19: 0 | AK19: 3 | AL19: 11 | AM19: 8 | AN19: 3 | AO19: 2 | AP19: 2 | AQ19: 0 | AR19: 8 | AS19: 3 | AT19: 5 | AU19: 0 | AV19: 0 | AW19: 0
A20: 진관동 | B20: 1936 | C20: 1116 | D20: 820 | E20: 794 | F20: 431 | G20: 363 | H20: 227 | I20: 126 | J20: 101 | K20: 276 | L20: 148 | M20: 128 | N20: 11 | O20: 9 | P20: 2 | Q20: 131 | R20: 86 | S20: 45 | T20: 212 | U20: 127 | V20: 85 | W20: 82 | X20: 67 | Y20: 15 | Z20: 55 | AA20: 27 | AB20: 28 | AC20: 83 | AD20: 52 | AE20: 31 | AF20: 7 | AG20: 5 | AH20: 2 | AI20: 7 | AJ20: 5 | AK20: 2 | AL20: 22 | AM20: 16 | AN20: 6 | AO20: 2 | AP20: 0 | AQ20: 2 | AR20: 22 | AS20: 14 | AT20: 8 | AU20: 5 | AV20: 3 | AW20: 2

Sheet 정도별
B2: 은평구 동별 장애인현황(정도별)
B3: *2024. 8월말 기준 | K3: (단위 : 명)
B4: 자치구 | C4: 동 | D4: 합계 | G4: 심한 장애 | J4: 심하지 않은 장애
D5: 계 | E5: 남자 | F5: 여자 | G5: 계 | H5: 남자 | I5: 여자 | J5: 계 | K5: 남자 | L5: 여자
B6: 은평구 | C6: 합 계 | D6: 21369 | E6: 12444 | F6: 8925 | G6: 8107 | H6: 5074 | I6: 3033 | J6: 13262 | K6: 7370 | L6: 5892
C7: 녹번동 | D7: 1623 | E7: 926 | F7: 697 | G7: 557 | H7: 319 | I7: 238 | J7: 1066 | K7: 607 | L7: 459
C8: 불광1동 | D8: 1625 | E8: 914 | F8: 711 | G8: 557 | H8: 318 | I8: 239 | J8: 1068 | K8: 596 | L8: 472
C9: 불광2동 | D9: 1427 | E9: 845 | F9: 582 | G9: 478 | H9: 288 | I9: 190 | J9: 949 | K9: 557 | L9: 392
C10: 갈현1동 | D10: 689 | E10: 383 | F10: 306 | G10: 253 | H10: 138 | I10: 115 | J10: 436 | K10: 245 | L10: 191
C11: 갈현2동 | D11: 1274 | E11: 739 | F11: 535 | G11: 490 | H11: 290 | I11: 200 | J11: 784 | K11: 449 | L11: 335
C12: 구산동 | D12: 2127 | E12: 1469 | F12: 658 | G12: 1150 | H12: 907 | I12: 243 | J12: 977 | K12: 562 | L12: 415
C13: 대조동 | D13: 1219 | E13: 702 | F13: 517 | G13: 434 | H13: 263 | I13: 171 | J13: 785 | K13: 439 | L13: 346
C14: 응암1동 | D14: 1323 | E14: 727 | F14: 596 | G14: 455 | H14: 265 | I14: 190 | J14: 868 | K14: 462 | L14: 406
C15: 응암2동 | D15: 975 | E15: 538 | F15: 437 | G15: 379 | H15: 233 | I15: 146 | J15: 596 | K15: 305 | L15: 291
C16: 응암3동 | D16: 1302 | E16: 737 | F16: 565 | G16: 389 | H16: 238 | I16: 151 | J16: 913 | K16: 499 | L16: 414
C17: 역촌동 | D17: 2141 | E17: 1198 | F17: 943 | G17: 779 | H17: 457 | I17: 322 | J17: 1362 | K17: 741 | L17: 621
C18: 신사1동 | D18: 1237 | E18: 745 | F18: 492 | G18: 491 | H18: 305 | I18: 186 | J18: 746 | K18: 440 | L18: 306
C19: 신사2동 | D19: 892 | E19: 513 | F19: 379 | G19: 327 | H19: 206 | I19: 121 | J19: 565 | K19: 307 | L19: 258
C20: 증산동 | D20: 756 | E20: 443 | F20: 313 | G20: 273 | H20: 175 | I20: 98 | J20: 483 | K20: 268 | L20: 215
C21: 수색동 | D21: 823 | E21: 449 | F21: 374 | G21: 323 | H21: 189 | I21: 134 | J21: 500 | K21: 260 | L21: 240
C22: 진관동 | D22: 1936 | E22: 1116 | F22: 820 | G22: 772 | H22: 483 | I22: 289 | J22: 1164 | K22: 633 | L22: 531

Sheet 연령별
A1: 은평구 장애인 연령구간별(5세 간격), 장애정도별 등록 현황
A2: =정도별!B3 -> *2024. 8월말 기준
J3: (단위: 명)
A4: 구분 | B4: 나이 | C4: 합계 | F4: 심한 장애 | I4: 심하지 않은 장애
C5: 합계 | D5: 남성 | E5: 여성 | F5: 소계 | G5: 남성 | H5: 여성 | I5: 소계 | J5: 남성 | K5: 여성
A6: 합계 | B6: 합계 | C6: 21369 | D6: 12444 | E6: 8925 | F6: 8107 | G6: 5074 | H6: 3033 | I6: 13262 | J6: 7370 | K6: 5892
B7: 0~4 | C7: 40 | D7: 19 | E7: 21 | F7: 33 | G7: 18 | H7: 15 | I7: 7 | J7: 1 | K7: 6
B8: 5~9 | C8: 267 | D8: 184 | E8: 83 | F8: 244 | G8: 173 | H8: 71 | I8: 23 | J8: 11 | K8: 12
B9: 10~14 | C9: 312 | D9: 208 | E9: 104 | F9: 288 | G9: 190 | H9: 98 | I9: 24 | J9: 18 | K9: 6
B10: 15~19 | C10: 250 | D10: 165 | E10: 85 | F10: 215 | G10: 148 | H10: 67 | I10: 35 | J10: 17 | K10: 18
B11: 20~24 | C11: 385 | D11: 237 | E11: 148 | F11: 323 | G11: 208 | H11: 115 | I11: 62 | J11: 29 | K11: 33
B12: 25~29 | C12: 490 | D12: 308 | E12: 182 | F12: 383 | G12: 250 | H12: 133 | I12: 107 | J12: 58 | K12: 49
B13: 30~34 | C13: 549 | D13: 355 | E13: 194 | F13: 404 | G13: 266 | H13: 138 | I13: 145 | J13: 89 | K13: 56
B14: 35~39 | C14: 499 | D14: 314 | E14: 185 | F14: 299 | G14: 190 | H14: 109 | I14: 200 | J14: 124 | K14: 76
B15: 40~44 | C15: 677 | D15: 452 | E15: 225 | F15: 368 | G15: 222 | H15: 146 | I15: 309 | J15: 230 | K15: 79
B16: 45~49 | C16: 872 | D16: 612 | E16: 260 | F16: 440 | G16: 294 | H16: 146 | I16: 432 | J16: 318 | K16: 114
B17: 50~54 | C17: 1348 | D17: 918 | E17: 430 | F17: 660 | G17: 425 | H17: 235 | I17: 688 | J17: 493 | K17: 195
B18: 55~59 | C18: 1678 | D18: 1125 | E18: 553 | F18: 680 | G18: 439 | H18: 241 | I18: 998 | J18: 686 | K18: 312
B19: 60~64 | C19: 2192 | D19: 1474 | E19: 718 | F19: 809 | G19: 552 | H19: 257 | I19: 1383 | J19: 922 | K19: 461
B20: 65~69 | C20: 2444 | D20: 1494 | E20: 950 | F20: 786 | G20: 501 | H20: 285 | I20: 1658 | J20: 993 | K20: 665
B21: 70~74 | C21: 2407 | D21: 1351 | E21: 1056 | F21: 677 | G21: 445 | H21: 232 | I21: 1730 | J21: 906 | K21: 824
B22: 75~79 | C22: 2515 | D22: 1299 | E22: 1216 | F22: 567 | G22: 319 | H22: 248 | I22: 1948 | J22: 980 | K22: 968
B23: 80~84 | C23: 2391 | D23: 1127 | E23: 1264 | F23: 489 | G23: 253 | H23: 236 | I23: 1902 | J23: 874 | K23: 1028
B24: 85~89 | C24: 1482 | D24: 608 | E24: 874 | F24: 323 | G24: 136 | H24: 187 | I24: 1159 | J24: 472 | K24: 687
B25: 90~94 | C25: 466 | D25: 155 | E25: 311 | F25: 100 | G25: 38 | H25: 62 | I25: 366 | J25: 117 | K25: 249
B26: 95~99 | C26: 89 | D26: 36 | E26: 53 | F26: 15 | G26: 6 | H26: 9 | I26: 74 | J26: 30 | K26: 44
B27: 100~104 | C27: 15 | D27: 3 | E27: 12 | F27: 3 | G27: 1 | H27: 2 | I27: 12 | J27: 2 | K27: 10
B28: 105~109 | C28: 1 | D28: 0 | E28: 1 | F28: 1 | G28: 0 | H28: 1 | I28: 0 | J28: 0 | K28: 0

Sheet 연령별,유형별
A1: 은평구 등록장애인 연령별, 유형별 현황
B2: =정도별!B3 -> *2024. 8월말 기준
A3: 구분 | B3: 나이 | C3: 합계 | F3: 지체 | I3: 시각 | L3: 청각 | O3: 언어 | R3: 지적 | U3: 뇌병변 | X3: 자폐 | AA3: 정신 | AD3: 신장 | AG3: 심장 | AJ3: 호흡기 | AM3: 간 | AP3: 안면 | AS3: 장루.요루 | AV3: 뇌전증
C4: 합계 | D4: 남성 | E4: 여성 | F4: 소계 | G4: 남성 | H4: 여성 | I4: 소계 | J4: 남성 | K4: 여성 | L4: 소계 | M4: 남성 | N4: 여성 | O4: 소계 | P4: 남성 | Q4: 여성 | R4: 소계 | S4: 남성 | T4: 여성 | U4: 소계 | V4: 남성 | W4: 여성 | X4: 소계 | Y4: 남성 | Z4: 여성 | AA4: 소계 | AB4: 남성 | AC4: 여성 | AD4: 소계 | AE4: 남성 | AF4: 여성 | AG4: 소계 | AH4: 남성 | AI4: 여성 | AJ4: 소계 | AK4: 남성 | AL4: 여성 | AM4: 소계 | AN4: 남성 | AO4: 여성 | AP4: 소계 | AQ4: 남성 | AR4: 여성 | AS4: 소계 | AT4: 남성 | AU4: 여성 | AV4: 소계 | AW4: 남성 | AX4: 여성
A5: 합계 | C5: 21369 | D5: 12444 | E5: 8925 | F5: 8420 | G5: 4596 | H5: 3824 | I5: 2276 | J5: 1331 | K5: 945 | L5: 3359 | M5: 1867 | N5: 1492 | O5: 170 | P5: 123 | Q5: 47 | R5: 1875 | S5: 1231 | T5: 644 | U5: 2121 | V5: 1251 | W5: 870 | X5: 473 | Y5: 395 | Z5: 78 | AA5: 1128 | AB5: 691 | AC5: 437 | AD5: 952 | AE5: 582 | AF5: 370 | AG5: 44 | AH5: 26 | AI5: 18 | AJ5: 115 | AK5: 82 | AL5: 33 | AM5: 162 | AN5: 107 | AO5: 55 | AP5: 24 | AQ5: 14 | AR5: 10 | AS5: 182 | AT5: 115 | AU5: 67 | AV5: 68 | AW5: 33 | AX5: 35
A6: 합계 | B6: 1 | C6: 2 | D6: 0 | E6: 2 | F6: 0 | G6: 0 | H6: 0 | I6: 0 | J6: 0 | K6: 0 | L6: 0 | M6: 0 | N6: 0 | O6: 0 | P6: 0 | Q6: 0 | R6: 0 | S6: 0 | T6: 0 | U6: 2 | V6: 0 | W6: 2 | X6: 0 | Y6: 0 | Z6: 0 | AA6: 0 | AB6: 0 | AC6: 0 | AD6: 0 | AE6: 0 | AF6: 0 | AG6: 0 | AH6: 0 | AI6: 0 | AJ6: 0 | AK6: 0 | AL6: 0 | AM6: 0 | AN6: 0 | AO6: 0 | AP6: 0 | AQ6: 0 | AR6: 0 | AS6: 0 | AT6: 0 | AU6: 0 | AV6: 0 | AW6: 0 | AX6: 0
B7: 2 | C7: 9 | D7: 4 | E7: 5 | F7: 0 | G7: 0 | H7: 0 | I7: 0 | J7: 0 | K7: 0 | L7: 2 | M7: 1 | N7: 1 | O7: 0 | P7: 0 | Q7: 0 | R7: 1 | S7: 0 | T7: 1 | U7: 5 | V7: 2 | W7: 3 | X7: 0 | Y7: 0 | Z7: 0 | AA7: 0 | AB7: 0 | AC7: 0 | AD7: 1 | AE7: 1 | AF7: 0 | AG7: 0 | AH7: 0 | AI7: 0 | AJ7: 0 | AK7: 0 | AL7: 0 | AM7: 0 | AN7: 0 | AO7: 0 | AP7: 0 | AQ7: 0 | AR7: 0 | AS7: 0 | AT7: 0 | AU7: 0 | AV7: 0 | AW7: 0 | AX7: 0
B8: 3 | C8: 5 | D8: 3 | E8: 2 | F8: 0 | G8: 0 | H8: 0 | I8: 0 | J8: 0 | K8: 0 | L8: 0 | M8: 0 | N8: 0 | O8: 0 | P8: 0 | Q8: 0 | R8: 2 | S8: 1 | T8: 1 | U8: 3 | V8: 2 | W8: 1 | X8: 0 | Y8: 0 | Z8: 0 | AA8: 0 | AB8: 0 | AC8: 0 | AD8: 0 | AE8: 0 | AF8: 0 | AG8: 0 | AH8: 0 | AI8: 0 | AJ8: 0 | AK8: 0 | AL8: 0 | AM8: 0 | AN8: 0 | AO8: 0 | AP8: 0 | AQ8: 0 | AR8: 0 | AS8: 0 | AT8: 0 | AU8: 0 | AV8: 0 | AW8: 0 | AX8: 0
B9: 4 | C9: 24 | D9: 12 | E9: 12 | F9: 1 | G9: 1 | H9: 0 | I9: 1 | J9: 1 | K9: 0 | L9: 3 | M9: 1 | N9: 2 | O9: 2 | P9: 0 | Q9: 2 | R9: 5 | S9: 3 | T9: 2 | U9: 5 | V9: 2 | W9: 3 | X9: 6 | Y9: 4 | Z9: 2 | AA9: 0 | AB9: 0 | AC9: 0 | AD9: 0 | AE9: 0 | AF9: 0 | AG9: 0 | AH9: 0 | AI9: 0 | AJ9: 0 | AK9: 0 | AL9: 0 | AM9: 0 | AN9: 0 | AO9: 0 | AP9: 0 | AQ9: 0 | AR9: 0 | AS9: 1 | AT9: 0 | AU9: 1 | AV9: 0 | AW9: 0 | AX9: 0
B10: 5 | C10: 39 | D10: 21 | E10: 18 | F10: 1 | G10: 0 | H10: 1 | I10: 1 | J10: 1 | K10: 0 | L10: 2 | M10: 1 | N10: 1 | O10: 2 | P10: 1 | Q10: 1 | R10: 3 | S10: 2 | T10: 1 | U10: 13 | V10: 5 | W10: 8 | X10: 16 | Y10: 11 | Z10: 5 | AA10: 0 | AB10: 0 | AC10: 0 | AD10: 0 | AE10: 0 | AF10: 0 | AG10: 0 | AH10: 0 | AI10: 0 | AJ10: 0 | AK10: 0 | AL10: 0 | AM10: 0 | AN10: 0 | AO10: 0 | AP10: 0 | AQ10: 0 | AR10: 0 | AS10: 0 | AT10: 0 | AU10: 0 | AV10: 1 | AW10: 0 | AX10: 1
B11: 6 | C11: 57 | D11: 39 | E11: 18 | F11: 1 | G11: 0 | H11: 1 | I11: 0 | J11: 0 | K11: 0 | L11: 0 | M11: 0 | N11: 0 | O11: 3 | P11: 2 | Q11: 1 | R11: 14 | S11: 9 | T11: 5 | U11: 12 | V11: 4 | W11: 8 | X11: 27 | Y11: 24 | Z11: 3 | AA11: 0 | AB11: 0 | AC11: 0 | AD11: 0 | AE11: 0 | AF11: 0 | AG11: 0 | AH11: 0 | AI11: 0 | AJ11: 0 | AK11: 0 | AL11: 0 | AM11: 0 | AN11: 0 | AO11: 0 | AP11: 0 | AQ11: 0 | AR11: 0 | AS11: 0 | AT11: 0 | AU11: 0 | AV11: 0 | AW11: 0 | AX11: 0
B12: 7 | C12: 56 | D12: 41 | E12: 15 | F12: 0 | G12: 0 | H12: 0 | I12: 0 | J12: 0 | K12: 0 | L12: 2 | M12: 0 | N12: 2 | O12: 6 | P12: 5 | Q12: 1 | R12: 12 | S12: 8 | T12: 4 | U12: 5 | V12: 3 | W12: 2 | X12: 29 | Y12: 23 | Z12: 6 | AA12: 0 | AB12: 0 | AC12: 0 | AD12: 0 | AE12: 0 | AF12: 0 | AG12: 0 | AH12: 0 | AI12: 0 | AJ12: 0 | AK12: 0 | AL12: 0 | AM12: 0 | AN12: 0 | AO12: 0 | AP12: 0 | AQ12: 0 | AR12: 0 | AS12: 1 | AT12: 1 | AU12: 0 | AV12: 1 | AW12: 1 | AX12: 0
B13: 8 | C13: 61 | D13: 45 | E13: 16 | F13: 0 | G13: 0 | H13: 0 | I13: 1 | J13: 0 | K13: 1 | L13: 3 | M13: 2 | N13: 1 | O13: 2 | P13: 1 | Q13: 1 | R13: 14 | S13: 11 | T13: 3 | U13: 4 | V13: 1 | W13: 3 | X13: 37 | Y13: 30 | Z13: 7 | AA13: 0 | AB13: 0 | AC13: 0 | AD13: 0 | AE13: 0 | AF13: 0 | AG13: 0 | AH13: 0 | AI13: 0 | AJ13: 0 | AK13: 0 | AL13: 0 | AM13: 0 | AN13: 0 | AO13: 0 | AP13: 0 | AQ13: 0 | AR13: 0 | AS13: 0 | AT13: 0 | AU13: 0 | AV13: 0 | AW13: 0 | AX13: 0
B14: 9 | C14: 54 | D14: 38 | E14: 16 | F14: 0 | G14: 0 | H14: 0 | I14: 1 | J14: 1 | K14: 0 | L14: 3 | M14: 0 | N14: 3 | O14: 0 | P14: 0 | Q14: 0 | R14: 24 | S14: 18 | T14: 6 | U14: 6 | V14: 3 | W14: 3 | X14: 20 | Y14: 16 | Z14: 4 | AA14: 0 | AB14: 0 | AC14: 0 | AD14: 0 | AE14: 0 | AF14: 0 | AG14: 0 | AH14: 0 | AI14: 0 | AJ14: 0 | AK14: 0 | AL14: 0 | AM14: 0 | AN14: 0 | AO14: 0 | AP14: 0 | AQ14: 0 | AR14: 0 | AS14: 0 | AT14: 0 | AU14: 0 | AV14: 0 | AW14: 0 | AX14: 0
B15: 10 | C15: 62 | D15: 37 | E15: 25 | F15: 0 | G15: 0 | H15: 0 | I15: 0 | J15: 0 | K15: 0 | L15: 2 | M15: 1 | N15: 1 | O15: 1 | P15: 1 | Q15: 0 | R15: 26 | S15: 12 | T15: 14 | U15: 11 | V15: 7 | W15: 4 | X15: 22 | Y15: 16 | Z15: 6 | AA15: 0 | AB15: 0 | AC15: 0 | AD15: 0 | AE15: 0 | AF15: 0 | AG15: 0 | AH15: 0 | AI15: 0 | AJ15: 0 | AK15: 0 | AL15: 0 | AM15: 0 | AN15: 0 | AO15: 0 | AP15: 0 | AQ15: 0 | AR15: 0 | AS15: 0 | AT15: 0 | AU15: 0 | AV15: 0 | AW15: 0 | AX15: 0
B16: 11 | C16: 59 | D16: 40 | E16: 19 | F16: 0 | G16: 0 | H16: 0 | I16: 1 | J16: 0 | K16: 1 | L16: 3 | M16: 0 | N16: 3 | O16: 1 | P16: 1 | Q16: 0 | R16: 22 | S16: 16 | T16: 6 | U16: 8 | V16: 3 | W16: 5 | X16: 22 | Y16: 18 | Z16: 4 | AA16: 0 | AB16: 0 | AC16: 0 | AD16: 0 | AE16: 0 | AF16: 0 | AG16: 1 | AH16: 1 | AI16: 0 | AJ16: 0 | AK16: 0 | AL16: 0 | AM16: 1 | AN16: 1 | AO16: 0 | AP16: 0 | AQ16: 0 | AR16: 0 | AS16: 0 | AT16: 0 | AU16: 0 | AV16: 0 | AW16: 0 | AX16: 0
B17: 12 | C17: 63 | D17: 37 | E17: 26 | F17: 2 | G17: 1 | H17: 1 | I17: 2 | J17: 2 | K17: 0 | L17: 1 | M17: 0 | N17: 1 | O17: 0 | P17: 0 | Q17: 0 | R17: 26 | S17: 14 | T17: 12 | U17: 13 | V17: 4 | W17: 9 | X17: 19 | Y17: 16 | Z17: 3 | AA17: 0 | AB17: 0 | AC17: 0 | AD17: 0 | AE17: 0 | AF17: 0 | AG17: 0 | AH17: 0 | AI17: 0 | AJ17: 0 | AK17: 0 | AL17: 0 | AM17: 0 | AN17: 0 | AO17: 0 | AP17: 0 | AQ17: 0 | AR17: 0 | AS17: 0 | AT17: 0 | AU17: 0 | AV17: 0 | AW17: 0 | AX17: 0
B18: 13 | C18: 65 | D18: 49 | E18: 16 | F18: 3 | G18: 2 | H18: 1 | I18: 3 | J18: 1 | K18: 2 | L18: 2 | M18: 1 | N18: 1 | O18: 1 | P18: 1 | Q18: 0 | R18: 29 | S18: 22 | T18: 7 | U18: 4 | V18: 3 | W18: 1 | X18: 23 | Y18: 19 | Z18: 4 | AA18: 0 | AB18: 0 | AC18: 0 | AD18: 0 | AE18: 0 | AF18: 0 | AG18: 0 | AH18: 0 | AI18: 0 | AJ18: 0 | AK18: 0 | AL18: 0 | AM18: 0 | AN18: 0 | AO18: 0 | AP18: 0 | AQ18: 0 | AR18: 0 | AS18: 0 | AT18: 0 | AU18: 0 | AV18: 0 | AW18: 0 | AX18: 0
B19: 14 | C19: 63 | D19: 45 | E19: 18 | F19: 1 | G19: 1 | H19: 0 | I19: 1 | J19: 0 | K19: 1 | L19: 0 | M19: 0 | N19: 0 | O19: 1 | P19: 1 | Q19: 0 | R19: 27 | S19: 16 | T19: 11 | U19: 8 | V19: 6 | W19: 2 | X19: 25 | Y19: 21 | Z19: 4 | AA19: 0 | AB19: 0 | AC19: 0 | AD19: 0 | AE19: 0 | AF19: 0 | AG19: 0 | AH19: 0 | AI19: 0 | AJ19: 0 | AK19: 0 | AL19: 0 | AM19: 0 | AN19: 0 | AO19: 0 | AP19: 0 | AQ19: 0 | AR19: 0 | AS19: 0 | AT19: 0 | AU19: 0 | AV19: 0 | AW19: 0 | AX19: 0
B20: 15 | C20: 50 | D20: 31 | E20: 19 | F20: 4 | G20: 3 | H20: 1 | I20: 0 | J20: 0 | K20: 0 | L20: 1 | M20: 1 | N20: 0 | O20: 0 | P20: 0 | Q20: 0 | R20: 25 | S20: 13 | T20: 12 | U20: 3 | V20: 2 | W20: 1 | X20: 14 | Y20: 10 | Z20: 4 | AA20: 0 | AB20: 0 | AC20: 0 | AD20: 0 | AE20: 0 | AF20: 0 | AG20: 1 | AH20: 1 | AI20: 0 | AJ20: 0 | AK20: 0 | AL20: 0 | AM20: 1 | AN20: 1 | AO20: 0 | AP20: 0 | AQ20: 0 | AR20: 0 | AS20: 1 | AT20: 0 | AU20: 1 | AV20: 0 | AW20: 0 | AX20: 0
B21: 16 | C21: 55 | D21: 40 | E21: 15 | F21: 1 | G21: 1 | H21: 0 | I21: 2 | J21: 0 | K21: 2 | L21: 1 | M21: 0 | N21: 1 | O21: 0 | P21: 0 | Q21: 0 | R21: 32 | S21: 26 | T21: 6 | U21: 9 | V21: 5 | W21: 4 | X21: 10 | Y21: 8 | Z21: 2 | AA21: 0 | AB21: 0 | AC21: 0 | AD21: 0 | AE21: 0 | AF21: 0 | AG21: 0 | AH21: 0 | AI21: 0 | AJ21: 0 | AK21: 0 | AL21: 0 | AM21: 0 | AN21: 0 | AO21: 0 | AP21: 0 | AQ21: 0 | AR21: 0 | AS21: 0 | AT21: 0 | AU21: 0 | AV21: 0 | AW21: 0 | AX21: 0
B22: 17 | C22: 52 | D22: 34 | E22: 18 | F22: 2 | G22: 0 | H22: 2 | I22: 1 | J22: 0 | K22: 1 | L22: 1 | M22: 1 | N22: 0 | O22: 0 | P22: 0 | Q22: 0 | R22: 34 | S22: 22 | T22: 12 | U22: 5 | V22: 3 | W22: 2 | X22: 8 | Y22: 7 | Z22: 1 | AA22: 0 | AB22: 0 | AC22: 0 | AD22: 0 | AE22: 0 | AF22: 0 | AG22: 0 | AH22: 0 | AI22: 0 | AJ22: 0 | AK22: 0 | AL22: 0 | AM22: 1 | AN22: 1 | AO22: 0 | AP22: 0 | AQ22: 0 | AR22: 0 | AS22: 0 | AT22: 0 | AU22: 0 | AV22: 0 | AW22: 0 | AX22: 0
B23: 18 | C23: 47 | D23: 31 | E23: 16 | F23: 4 | G23: 3 | H23: 1 | I23: 1 | J23: 1 | K23: 0 | L23: 1 | M23: 0 | N23: 1 | O23: 0 | P23: 0 | Q23: 0 | R23: 30 | S23: 21 | T23: 9 | U23: 4 | V23: 1 | W23: 3 | X23: 6 | Y23: 5 | Z23: 1 | AA23: 0 | AB23: 0 | AC23: 0 | AD23: 0 | AE23: 0 | AF23: 0 | AG23: 0 | AH23: 0 | AI23: 0 | AJ23: 0 | AK23: 0 | AL23: 0 | AM23: 1 | AN23: 0 | AO23: 1 | AP23: 0 | AQ23: 0 | AR23: 0 | AS23: 0 | AT23: 0 | AU23: 0 | AV23: 0 | AW23: 0 | AX23: 0
B24: 19 | C24: 46 | D24: 29 | E24: 17 | F24: 5 | G24: 2 | H24: 3 | I24: 3 | J24: 1 | K24: 2 | L24: 2 | M24: 0 | N24: 2 | O24: 0 | P24: 0 | Q24: 0 | R24: 27 | S24: 19 | T24: 8 | U24: 3 | V24: 2 | W24: 1 | X24: 6 | Y24: 5 | Z24: 1 | AA24: 0 | AB24: 0 | AC24: 0 | AD24: 0 | AE24: 0 | AF24: 0 | AG24: 0 | AH24: 0 | AI24: 0 | AJ24: 0 | AK24: 0 | AL24: 0 | AM24: 0 | AN24: 0 | AO24: 0 | AP24: 0 | AQ24: 0 | AR24: 0 | AS24: 0 | AT24: 0 | AU24: 0 | AV24: 0 | AW24: 0 | AX24: 0
B25: 20 | C25: 75 | D25: 47 | E25: 28 | F25: 3 | G25: 2 | H25: 1 | I25: 0 | J25: 0 | K25: 0 | L25: 4 | M25: 1 | N25: 3 | O25: 1 | P25: 1 | Q25: 0 | R25: 47 | S25: 26 | T25: 21 | U25: 7 | V25: 5 | W25: 2 | X25: 12 | Y25: 12 | Z25: 0 | AA25: 0 | AB25: 0 | AC25: 0 | AD25: 1 | AE25: 0 | AF25: 1 | AG25: 0 | AH25: 0 | AI25: 0 | AJ25: 0 | AK25: 0 | AL25: 0 | AM25: 0 | AN25: 0 | AO25: 0 | AP25: 0 | AQ25: 0 | AR25: 0 | AS25: 0 | AT25: 0 | AU25: 0 | AV25: 0 | AW25: 0 | AX25: 0
B26: 21 | C26: 65 | D26: 40 | E26: 25 | F26: 6 | G26: 5 | H26: 1 | I26: 1 | J26: 1 | K26: 0 | L26: 1 | M26: 0 | N26: 1 | O26: 1 | P26: 1 | Q26: 0 | R26: 40 | S26: 21 | T26: 19 | U26: 6 | V26: 3 | W26: 3 | X26: 5 | Y26: 5 | Z26: 0 | AA26: 0 | AB26: 0 | AC26: 0 | AD26: 1 | AE26: 1 | AF26: 0 | AG26: 2 | AH26: 2 | AI26: 0 | AJ26: 0 | AK26: 0 | AL26: 0 | AM26: 2 | AN26: 1 | AO26: 1 | AP26: 0 | AQ26: 0 | AR26: 0 | AS26: 0 | AT26: 0 | AU26: 0 | AV26: 0 | AW26: 0 | AX26: 0
B27: 22 | C27: 71 | D27: 41 | E27: 30 | F27: 4 | G27: 0 | H27: 4 | I27: 4 | J27: 3 | K27: 1 | L27: 5 | M27: 1 | N27: 4 | O27: 0 | P27: 0 | Q27: 0 | R27: 41 | S27: 29 | T27: 12 | U27: 6 | V27: 2 | W27: 4 | X27: 5 | Y27: 4 | Z27: 1 | AA27: 1 | AB27: 1 | AC27: 0 | AD27: 0 | AE27: 0 | AF27: 0 | AG27: 2 | AH27: 1 | AI27: 1 | AJ27: 0 | AK27: 0 | AL27: 0 | AM27: 3 | AN27: 0 | AO27: 3 | AP27: 0 | AQ27: 0 | AR27: 0 | AS27: 0 | AT27: 0 | AU27: 0 | AV27: 0 | AW27: 0 | AX27: 0
B28: 23 | C28: 77 | D28: 49 | E28: 28 | F28: 5 | G28: 1 | H28: 4 | I28: 6 | J28: 3 | K28: 3 | L28: 4 | M28: 4 | N28: 0 | O28: 0 | P28: 0 | Q28: 0 | R28: 42 | S28: 25 | T28: 17 | U28: 3 | V28: 3 | W28: 0 | X28: 13 | Y28: 11 | Z28: 2 | AA28: 3 | AB28: 2 | AC28: 1 | AD28: 1 | AE28: 0 | AF28: 1 | AG28: 0 | AH28: 0 | AI28: 0 | AJ28: 0 | AK28: 0 | AL28: 0 | AM28: 0 | AN28: 0 | AO28: 0 | AP28: 0 | AQ28: 0 | AR28: 0 | AS28: 0 | AT28: 0 | AU28: 0 | AV28: 0 | AW28: 0 | AX28: 0
B29: 24 | C29: 97 | D29: 60 | E29: 37 | F29: 13 | G29: 4 | H29: 9 | I29: 3 | J29: 1 | K29: 2 | L29: 8 | M29: 4 | N29: 4 | O29: 0 | P29: 0 | Q29: 0 | R29: 44 | S29: 32 | T29: 12 | U29: 4 | V29: 3 | W29: 1 | X29: 16 | Y29: 13 | Z29: 3 | AA29: 4 | AB29: 2 | AC29: 2 | AD29: 0 | AE29: 0 | AF29: 0 | AG29: 2 | AH29: 0 | AI29: 2 | AJ29: 1 | AK29: 1 | AL29: 0 | AM29: 1 | AN29: 0 | AO29: 1 | AP29: 0 | AQ29: 0 | AR29: 0 | AS29: 0 | AT29: 0 | AU29: 0 | AV29: 1 | AW29: 0 | AX29: 1
B30: 25 | C30: 87 | D30: 61 | E30: 26 | F30: 1 | G30: 0 | H30: 1 | I30: 7 | J30: 4 | K30: 3 | L30: 6 | M30: 4 | N30: 2 | O30: 0 | P30: 0 | Q30: 0 | R30: 42 | S30: 28 | T30: 14 | U30: 9 | V30: 6 | W30: 3 | X30: 16 | Y30: 15 | Z30: 1 | AA30: 1 | AB30: 1 | AC30: 0 | AD30: 0 | AE30: 0 | AF30: 0 | AG30: 1 | AH30: 1 | AI30: 0 | AJ30: 0 | AK30: 0 | AL30: 0 | AM30: 4 | AN30: 2 | AO30: 2 | AP30: 0 | AQ30: 0 | AR30: 0 | AS30: 0 | AT30: 0 | AU30: 0 | AV30: 0 | AW30: 0 | AX30: 0
B31: 26 | C31: 95 | D31: 53 | E31: 42 | F31: 11 | G31: 6 | H31: 5 | I31: 8 | J31: 4 | K31: 4 | L31: 5 | M31: 0 | N31: 5 | O31: 2 | P31: 2 | Q31: 0 | R31: 49 | S31: 30 | T31: 19 | U31: 5 | V31: 2 | W31: 3 | X31: 7 | Y31: 5 | Z31: 2 | AA31: 4 | AB31: 1 | AC31: 3 | AD31: 3 | AE31: 2 | AF31: 1 | AG31: 0 | AH31: 0 | AI31: 0 | AJ31: 0 | AK31: 0 | AL31: 0 | AM31: 0 | AN31: 0 | AO31: 0 | AP31: 0 | AQ31: 0 | AR31: 0 | AS31: 0 | AT31: 0 | AU31: 0 | AV31: 1 | AW31: 1 | AX31: 0
B32: 27 | C32: 98 | D32: 58 | E32: 40 | F32: 15 | G32: 7 | H32: 8 | I32: 12 | J32: 7 | K32: 5 | L32: 8 | M32: 5 | N32: 3 | O32: 2 | P32: 2 | Q32: 0 | R32: 38 | S32: 21 | T32: 17 | U32: 9 | V32: 4 | W32: 5 | X32: 7 | Y32: 7 | Z32: 0 | AA32: 7 | AB32: 5 | AC32: 2 | AD32: 0 | AE32: 0 | AF32: 0 | AG32: 0 | AH32: 0 | AI32: 0 | AJ32: 0 | AK32: 0 | AL32: 0 | AM32: 0 | AN32: 0 | AO32: 0 | AP32: 0 | AQ32: 0 | AR32: 0 | AS32: 0 | AT32: 0 | AU32: 0 | AV32: 0 | AW32: 0 | AX32: 0
B33: 28 | C33: 111 | D33: 62 | E33: 49 | F33: 10 | G33: 3 | H33: 7 | I33: 10 | J33: 6 | K33: 4 | L33: 6 | M33: 2 | N33: 4 | O33: 0 | P33: 0 | Q33: 0 | R33: 55 | S33: 31 | T33: 24 | U33: 5 | V33: 3 | W33: 2 | X33: 14 | Y33: 11 | Z33: 3 | AA33: 8 | AB33: 4 | AC33: 4 | AD33: 1 | AE33: 1 | AF33: 0 | AG33: 0 | AH33: 0 | AI33: 0 | AJ33: 0 | AK33: 0 | AL33: 0 | AM33: 1 | AN33: 1 | AO33: 0 | AP33: 0 | AQ33: 0 | AR33: 0 | AS33: 0 | AT33: 0 | AU33: 0 | AV33: 1 | AW33: 0 | AX33: 1
B34: 29 | C34: 99 | D34: 74 | E34: 25 | F34: 12 | G34: 8 | H34: 4 | I34: 9 | J34: 9 | K34: 0 | L34: 6 | M34: 4 | N34: 2 | O34: 0 | P34: 0 | Q34: 0 | R34: 46 | S34: 34 | T34: 12 | U34: 7 | V34: 5 | W34: 2 | X34: 9 | Y34: 8 | Z34: 1 | AA34: 4 | AB34: 4 | AC34: 0 | AD34: 3 | AE34: 1 | AF34: 2 | AG34: 0 | AH34: 0 | AI34: 0 | AJ34: 0 | AK34: 0 | AL34: 0 | AM34: 0 | AN34: 0 | AO34: 0 | AP34: 1 | AQ34: 0 | AR34: 1 | AS34: 1 | AT34: 1 | AU34: 0 | AV34: 1 | AW34: 0 | AX34: 1
B35: 30 | C35: 109 | D35: 70 | E35: 39 | F35: 11 | G35: 6 | H35: 5 | I35: 12 | J35: 9 | K35: 3 | L35: 6 | M35: 3 | N35: 3 | O35: 0 | P35: 0 | Q35: 0 | R35: 52 | S35: 30 | T35: 22 | U35: 10 | V35: 5 | W35: 5 | X35: 12 | Y35: 12 | Z35: 0 | AA35: 2 | AB35: 2 | AC35: 0 | AD35: 3 | AE35: 2 | AF35: 1 | AG35: 0 | AH35: 0 | AI35: 0 | AJ35: 0 | AK35: 0 | AL35: 0 | AM35: 0 | AN35: 0 | AO35: 0 | AP35: 0 | AQ35: 0 | AR35: 0 | AS35: 0 | AT35: 0 | AU35: 0 | AV35: 1 | AW35: 1 | AX35: 0
B36: 31 | C36: 100 | D36: 62 | E36: 38 | F36: 13 | G36: 9 | H36: 4 | I36: 11 | J36: 6 | K36: 5 | L36: 5 | M36: 1 | N36: 4 | O36: 1 | P36: 0 | Q36: 1 | R36: 53 | S36: 34 | T36: 19 | U36: 5 | V36: 4 | W36: 1 | X36: 6 | Y36: 5 | Z36: 1 | AA36: 4 | AB36: 1 | AC36: 3 | AD36: 1 | AE36: 1 | AF36: 0 | AG36: 0 | AH36: 0 | AI36: 0 | AJ36: 0 | AK36: 0 | AL36: 0 | AM36: 0 | AN36: 0 | AO36: 0 | AP36: 1 | AQ36: 1 | AR36: 0 | AS36: 0 | AT36: 0 | AU36: 0 | AV36: 0 | AW36: 0 | AX36: 0
B37: 32 | C37: 139 | D37: 88 | E37: 51 | F37: 21 | G37: 12 | H37: 9 | I37: 14 | J37: 10 | K37: 4 | L37: 7 | M37: 5 | N37: 2 | O37: 2 | P37: 1 | Q37: 1 | R37: 56 | S37: 37 | T37: 19 | U37: 12 | V37: 7 | W37: 5 | X37: 8 | Y37: 7 | Z37: 1 | AA37: 9 | AB37: 5 | AC37: 4 | AD37: 6 | AE37: 4 | AF37: 2 | AG37: 3 | AH37: 0 | AI37: 3 | AJ37: 0 | AK37: 0 | AL37: 0 | AM37: 0 | AN37: 0 | AO37: 0 | AP37: 0 | AQ37: 0 | AR37: 0 | AS37: 1 | AT37: 0 | AU37: 1 | AV37: 0 | AW37: 0 | AX37: 0
B38: 33 | C38: 104 | D38: 69 | E38: 35 | F38: 16 | G38: 12 | H38: 4 | I38: 9 | J38: 7 | K38: 2 | L38: 6 | M38: 3 | N38: 3 | O38: 0 | P38: 0 | Q38: 0 | R38: 37 | S38: 23 | T38: 14 | U38: 9 | V38: 5 | W38: 4 | X38: 10 | Y38: 9 | Z38: 1 | AA38: 10 | AB38: 8 | AC38: 2 | AD38: 5 | AE38: 2 | AF38: 3 | AG38: 2 | AH38: 0 | AI38: 2 | AJ38: 0 | AK38: 0 | AL38: 0 | AM38: 0 | AN38: 0 | AO38: 0 | AP38: 0 | AQ38: 0 | AR38: 0 | AS38: 0 | AT38: 0 | AU38: 0 | AV38: 0 | AW38: 0 | AX38: 0
B39: 34 | C39: 97 | D39: 66 | E39: 31 | F39: 16 | G39: 9 | H39: 7 | I39: 16 | J39: 12 | K39: 4 | L39: 4 | M39: 1 | N39: 3 | O39: 0 | P39: 0 | Q39: 0 | R39: 32 | S39: 23 | T39: 9 | U39: 6 | V39: 5 | W39: 1 | X39: 7 | Y39: 7 | Z39: 0 | AA39: 11 | AB39: 5 | AC39: 6 | AD39: 3 | AE39: 2 | AF39: 1 | AG39: 0 | AH39: 0 | AI39: 0 | AJ39: 0 | AK39: 0 | AL39: 0 | AM39: 0 | AN39: 0 | AO39: 0 | AP39: 0 | AQ39: 0 | AR39: 0 | AS39: 1 | AT39: 1 | AU39: 0 | AV39: 1 | AW39: 1 | AX39: 0
B40: 35 | C40: 94 | D40: 59 | E40: 35 | F40: 22 | G40: 16 | H40: 6 | I40: 11 | J40: 9 | K40: 2 | L40: 5 | M40: 1 | N40: 4 | O40: 0 | P40: 0 | Q40: 0 | R40: 29 | S40: 19 | T40: 10 | U40: 9 | V40: 4 | W40: 5 | X40: 6 | Y40: 4 | Z40: 2 | AA40: 9 | AB40: 4 | AC40: 5 | AD40: 1 | AE40: 1 | AF40: 0 | AG40: 0 | AH40: 0 | AI40: 0 | AJ40: 1 | AK40: 0 | AL40: 1 | AM40: 1 | AN40: 1 | AO40: 0 | AP40: 0 | AQ40: 0 | AR40: 0 | AS40: 0 | AT40: 0 | AU40: 0 | AV40: 0 | AW40: 0 | AX40: 0
B41: 36 | C41: 96 | D41: 68 | E41: 28 | F41: 26 | G41: 18 | H41: 8 | I41: 9 | J41: 5 | K41: 4 | L41: 3 | M41: 2 | N41: 1 | O41: 0 | P41: 0 | Q41: 0 | R41: 33 | S41: 25 | T41: 8 | U41: 10 | V41: 9 | W41: 1 | X41: 6 | Y41: 6 | Z41: 0 | AA41: 4 | AB41: 1 | AC41: 3 | AD41: 4 | AE41: 2 | AF41: 2 | AG41: 0 | AH41: 0 | AI41: 0 | AJ41: 0 | AK41: 0 | AL41: 0 | AM41: 0 | AN41: 0 | AO41: 0 | AP41: 0 | AQ41: 0 | AR41: 0 | AS41: 0 | AT41: 0 | AU41: 0 | AV41: 1 | AW41: 0 | AX41: 1
B42: 37 | C42: 110 | D42: 70 | E42: 40 | F42: 29 | G42: 18 | H42: 11 | I42: 13 | J42: 9 | K42: 4 | L42: 3 | M42: 2 | N42: 1 | O42: 0 | P42: 0 | Q42: 0 | R42: 32 | S42: 20 | T42: 12 | U42: 9 | V42: 6 | W42: 3 | X42: 6 | Y42: 6 | Z42: 0 | AA42: 9 | AB42: 6 | AC42: 3 | AD42: 4 | AE42: 1 | AF42: 3 | AG42: 1 | AH42: 0 | AI42: 1 | AJ42: 0 | AK42: 0 | AL42: 0 | AM42: 0 | AN42: 0 | AO42: 0 | AP42: 1 | AQ42: 1 | AR42: 0 | AS42: 2 | AT42: 1 | AU42: 1 | AV42: 1 | AW42: 0 | AX42: 1
B43: 38 | C43: 102 | D43: 60 | E43: 42 | F43: 25 | G43: 13 | H43: 12 | I43: 20 | J43: 12 | K43: 8 | L43: 4 | M43: 2 | N43: 2 | O43: 1 | P43: 1 | Q43: 0 | R43: 28 | S43: 17 | T43: 11 | U43: 4 | V43: 4 | W43: 0 | X43: 4 | Y43: 4 | Z43: 0 | AA43: 9 | AB43: 5 | AC43: 4 | AD43: 3 | AE43: 2 | AF43: 1 | AG43: 0 | AH43: 0 | AI43: 0 | AJ43: 1 | AK43: 0 | AL43: 1 | AM43: 1 | AN43: 0 | AO43: 1 | AP43: 0 | AQ43: 0 | AR43: 0 | AS43: 1 | AT43: 0 | AU43: 1 | AV43: 1 | AW43: 0 | AX43: 1
B44: 39 | C44: 97 | D44: 57 | E44: 40 | F44: 30 | G44: 18 | H44: 12 | I44: 11 | J44: 6 | K44: 5 | L44: 2 | M44: 2 | N44: 0 | O44: 0 | P44: 0 | Q44: 0 | R44: 20 | S44: 11 | T44: 9 | U44: 9 | V44: 5 | W44: 4 | X44: 4 | Y44: 3 | Z44: 1 | AA44: 12 | AB44: 8 | AC44: 4 | AD44: 6 | AE44: 2 | AF44: 4 | AG44: 0 | AH44: 0 | AI44: 0 | AJ44: 0 | AK44: 0 | AL44: 0 | AM44: 1 | AN44: 1 | AO44: 0 | AP44: 0 | AQ44: 0 | AR44: 0 | AS44: 0 | AT44: 0 | AU44: 0 | AV44: 2 | AW44: 1 | AX44: 1
B45: 40 | C45: 104 | D45: 68 | E45: 36 | F45: 32 | G45: 26 | H45: 6 | I45: 9 | J45: 5 | K45: 4 | L45: 2 | M45: 0 | N45: 2 | O45: 1 | P45: 0 | Q45: 1 | R45: 25 | S45: 17 | T45: 8 | U45: 16 | V45: 10 | W45: 6 | X45: 0 | Y45: 0 | Z45: 0 | AA45: 12 | AB45: 7 | AC45: 5 | AD45: 5 | AE45: 2 | AF45: 3 | AG45: 0 | AH45: 0 | AI45: 0 | AJ45: 0 | AK45: 0 | AL45: 0 | AM45: 0 | AN45: 0 | AO45: 0 | AP45: 0 | AQ45: 0 | AR45: 0 | AS45: 1 | AT45: 1 | AU45: 0 | AV45: 1 | AW45: 0 | AX45: 1
A46: 합계 | B46: 41 | C46: 119 | D46: 86 | E46: 33 | F46: 36 | G46: 29 | H46: 7 | I46: 18 | J46: 16 | K46: 2 | L46: 2 | M46: 2 | N46: 0 | O46: 0 | P46: 0 | Q46: 0 | R46: 26 | S46: 16 | T46: 10 | U46: 13 | V46: 8 | W46: 5 | X46: 1 | Y46: 0 | Z46: 1 | AA46: 13 | AB46: 9 | AC46: 4 | AD46: 3 | AE46: 0 | AF46: 3 | AG46: 2 | AH46: 2 | AI46: 0 | AJ46: 1 | AK46: 1 | AL46: 0 | AM46: 1 | AN46: 0 | AO46: 1 | AP46: 0 | AQ46: 0 | AR46: 0 | AS46: 1 | AT46: 1 | AU46: 0 | AV46: 2 | AW46: 2 | AX46: 0
B47: 42 | C47: 148 | D47: 96 | E47: 52 | F47: 52 | G47: 43 | H47: 9 | I47: 17 | J47: 12 | K47: 5 | L47: 6 | M47: 1 | N47: 5 | O47: 1 | P47: 0 | Q47: 1 | R47: 31 | S47: 17 | T47: 14 | U47: 10 | V47: 6 | W47: 4 | X47: 2 | Y47: 2 | Z47: 0 | AA47: 18 | AB47: 10 | AC47: 8 | AD47: 8 | AE47: 4 | AF47: 4 | AG47: 0 | AH47: 0 | AI47: 0 | AJ47: 0 | AK47: 0 | AL47: 0 | AM47: 0 | AN47: 0 | AO47: 0 | AP47: 0 | AQ47: 0 | AR47: 0 | AS47: 0 | AT47: 0 | AU47: 0 | AV47: 3 | AW47: 1 | AX47: 2
B48: 43 | C48: 166 | D48: 114 | E48: 52 | F48: 49 | G48: 37 | H48: 12 | I48: 23 | J48: 17 | K48: 6 | L48: 9 | M48: 6 | N48: 3 | O48: 1 | P48: 0 | Q48: 1 | R48: 42 | S48: 31 | T48: 11 | U48: 16 | V48: 12 | W48: 4 | X48: 2 | Y48: 1 | Z48: 1 | AA48: 15 | AB48: 5 | AC48: 10 | AD48: 7 | AE48: 5 | AF48: 2 | AG48: 0 | AH48: 0 | AI48: 0 | AJ48: 0 | AK48: 0 | AL48: 0 | AM48: 0 | AN48: 0 | AO48: 0 | AP48: 0 | AQ48: 0 | AR48: 0 | AS48: 1 | AT48: 0 | AU48: 1 | AV48: 1 | AW48: 0 | AX48: 1
B49: 44 | C49: 140 | D49: 88 | E49: 52 | F49: 49 | G49: 35 | H49: 14 | I49: 14 | J49: 8 | K49: 6 | L49: 10 | M49: 5 | N49: 5 | O49: 0 | P49: 0 | Q49: 0 | R49: 21 | S49: 14 | T49: 7 | U49: 12 | V49: 5 | W49: 7 | X49: 1 | Y49: 1 | Z49: 0 | AA49: 20 | AB49: 12 | AC49: 8 | AD49: 9 | AE49: 6 | AF49: 3 | AG49: 0 | AH49: 0 | AI49: 0 | AJ49: 1 | AK49: 0 | AL49: 1 | AM49: 1 | AN49: 1 | AO49: 0 | AP49: 0 | AQ49: 0 | AR49: 0 | AS49: 0 | AT49: 0 | AU49: 0 | AV49: 2 | AW49: 1 | AX49: 1
B50: 45 | C50: 151 | D50: 107 | E50: 44 | F50: 67 | G50: 56 | H50: 11 | I50: 16 | J50: 9 | K50: 7 | L50: 7 | M50: 2 | N50: 5 | O50: 0 | P50: 0 | Q50: 0 | R50: 22 | S50: 13 | T50: 9 | U50: 13 | V50: 11 | W50: 2 | X50: 0 | Y50: 0 | Z50: 0 | AA50: 11 | AB50: 6 | AC50: 5 | AD50: 10 | AE50: 7 | AF50: 3 | AG50: 2 | AH50: 2 | AI50: 0 | AJ50: 0 | AK50: 0 | AL50: 0 | AM50: 2 | AN50: 1 | AO50: 1 | AP50: 0 | AQ50: 0 | AR50: 0 | AS50: 1 | AT50: 0 | AU50: 1 | AV50: 0 | AW50: 0 | AX50: 0
B51: 46 | C51: 153 | D51: 109 | E51: 44 | F51: 61 | G51: 47 | H51: 14 | I51: 18 | J51: 14 | K51: 4 | L51: 8 | M51: 4 | N51: 4 | O51: 2 | P51: 2 | Q51: 0 | R51: 24 | S51: 15 | T51: 9 | U51: 10 | V51: 6 | W51: 4 | X51: 0 | Y51: 0 | Z51: 0 | AA51: 22 | AB51: 16 | AC51: 6 | AD51: 6 | AE51: 4 | AF51: 2 | AG51: 0 | AH51: 0 | AI51: 0 | AJ51: 0 | AK51: 0 | AL51: 0 | AM51: 1 | AN51: 1 | AO51: 0 | AP51: 1 | AQ51: 0 | AR51: 1 | AS51: 0 | AT51: 0 | AU51: 0 | AV51: 0 | AW51: 0 | AX51: 0
B52: 47 | C52: 166 | D52: 116 | E52: 50 | F52: 48 | G52: 38 | H52: 10 | I52: 21 | J52: 11 | K52: 10 | L52: 5 | M52: 1 | N52: 4 | O52: 1 | P52: 1 | Q52: 0 | R52: 36 | S52: 22 | T52: 14 | U52: 16 | V52: 12 | W52: 4 | X52: 0 | Y52: 0 | Z52: 0 | AA52: 25 | AB52: 19 | AC52: 6 | AD52: 9 | AE52: 7 | AF52: 2 | AG52: 0 | AH52: 0 | AI52: 0 | AJ52: 1 | AK52: 1 | AL52: 0 | AM52: 2 | AN52: 2 | AO52: 0 | AP52: 1 | AQ52: 1 | AR52: 0 | AS52: 0 | AT52: 0 | AU52: 0 | AV52: 1 | AW52: 1 | AX52: 0
B53: 48 | C53: 188 | D53: 136 | E53: 52 | F53: 75 | G53: 60 | H53: 15 | I53: 21 | J53: 10 | K53: 11 | L53: 11 | M53: 4 | N53: 7 | O53: 0 | P53: 0 | Q53: 0 | R53: 39 | S53: 33 | T53: 6 | U53: 13 | V53: 9 | W53: 4 | X53: 2 | Y53: 2 | Z53: 0 | AA53: 16 | AB53: 11 | AC53: 5 | AD53: 7 | AE53: 5 | AF53: 2 | AG53: 0 | AH53: 0 | AI53: 0 | AJ53: 1 | AK53: 1 | AL53: 0 | AM53: 1 | AN53: 0 | AO53: 1 | AP53: 1 | AQ53: 1 | AR53: 0 | AS53: 0 | AT53: 0 | AU53: 0 | AV53: 1 | AW53: 0 | AX53: 1
B54: 49 | C54: 214 | D54: 144 | E54: 70 | F54: 72 | G54: 61 | H54: 11 | I54: 28 | J54: 21 | K54: 7 | L54: 11 | M54: 4 | N54: 7 | O54: 5 | P54: 2 | Q54: 3 | R54: 27 | S54: 12 | T54: 15 | U54: 23 | V54: 13 | W54: 10 | X54: 1 | Y54: 1 | Z54: 0 | AA54: 33 | AB54: 20 | AC54: 13 | AD54: 11 | AE54: 9 | AF54: 2 | AG54: 0 | AH54: 0 | AI54: 0 | AJ54: 0 | AK54: 0 | AL54: 0 | AM54: 1 | AN54: 1 | AO54: 0 | AP54: 0 | AQ54: 0 | AR54: 0 | AS54: 1 | AT54: 0 | AU54: 1 | AV54: 1 | AW54: 0 | AX54: 1
B55: 50 | C55: 233 | D55: 152 | E55: 81 | F55: 79 | G55: 57 | H55: 22 | I55: 30 | J55: 19 | K55: 11 | L55: 11 | M55: 3 | N55: 8 | O55: 4 | P55: 3 | Q55: 1 | R55: 29 | S55: 21 | T55: 8 | U55: 29 | V55: 17 | W55: 12 | X55: 0 | Y55: 0 | Z55: 0 | AA55: 33 | AB55: 22 | AC55: 11 | AD55: 10 | AE55: 7 | AF55: 3 | AG55: 0 | AH55: 0 | AI55: 0 | AJ55: 1 | AK55: 1 | AL55: 0 | AM55: 1 | AN55: 1 | AO55: 0 | AP55: 2 | AQ55: 0 | AR55: 2 | AS55: 0 | AT55: 0 | AU55: 0 | AV55: 4 | AW55: 1 | AX55: 3
B56: 51 | C56: 259 | D56: 188 | E56: 71 | F56: 85 | G56: 69 | H56: 16 | I56: 41 | J56: 31 | K56: 10 | L56: 11 | M56: 5 | N56: 6 | O56: 5 | P56: 3 | Q56: 2 | R56: 25 | S56: 19 | T56: 6 | U56: 26 | V56: 19 | W56: 7 | X56: 0 | Y56: 0 | Z56: 0 | AA56: 45 | AB56: 27 | AC56: 18 | AD56: 13 | AE56: 11 | AF56: 2 | AG56: 2 | AH56: 1 | AI56: 1 | AJ56: 0 | AK56: 0 | AL56: 0 | AM56: 2 | AN56: 1 | AO56: 1 | AP56: 0 | AQ56: 0 | AR56: 0 | AS56: 0 | AT56: 0 | AU56: 0 | AV56: 4 | AW56: 2 | AX56: 2
B57: 52 | C57: 284 | D57: 195 | E57: 89 | F57: 100 | G57: 77 | H57: 23 | I57: 29 | J57: 21 | K57: 8 | L57: 18 | M57: 11 | N57: 7 | O57: 1 | P57: 1 | Q57: 0 | R57: 35 | S57: 24 | T57: 11 | U57: 29 | V57: 21 | W57: 8 | X57: 1 | Y57: 1 | Z57: 0 | AA57: 35 | AB57: 17 | AC57: 18 | AD57: 21 | AE57: 12 | AF57: 9 | AG57: 0 | AH57: 0 | AI57: 0 | AJ57: 2 | AK57: 1 | AL57: 1 | AM57: 4 | AN57: 2 | AO57: 2 | AP57: 2 | AQ57: 1 | AR57: 1 | AS57: 2 | AT57: 2 | AU57: 0 | AV57: 5 | AW57: 4 | AX57: 1
B58: 53 | C58: 294 | D58: 194 | E58: 100 | F58: 106 | G58: 79 | H58: 27 | I58: 35 | J58: 19 | K58: 16 | L58: 10 | M58: 4 | N58: 6 | O58: 3 | P58: 3 | Q58: 0 | R58: 36 | S58: 26 | T58: 10 | U58: 21 | V58: 17 | W58: 4 | X58: 0 | Y58: 0 | Z58: 0 | AA58: 53 | AB58: 27 | AC58: 26 | AD58: 21 | AE58: 15 | AF58: 6 | AG58: 2 | AH58: 1 | AI58: 1 | AJ58: 1 | AK58: 0 | AL58: 1 | AM58: 5 | AN58: 3 | AO58: 2 | AP58: 1 | AQ58: 0 | AR58: 1 | AS58: 0 | AT58: 0 | AU58: 0 | AV58: 0 | AW58: 0 | AX58: 0
B59: 54 | C59: 278 | D59: 189 | E59: 89 | F59: 115 | G59: 84 | H59: 31 | I59: 28 | J59: 20 | K59: 8 | L59: 12 | M59: 6 | N59: 6 | O59: 1 | P59: 1 | Q59: 0 | R59: 29 | S59: 18 | T59: 11 | U59: 29 | V59: 22 | W59: 7 | X59: 0 | Y59: 0 | Z59: 0 | AA59: 34 | AB59: 21 | AC59: 13 | AD59: 20 | AE59: 12 | AF59: 8 | AG59: 0 | AH59: 0 | AI59: 0 | AJ59: 0 | AK59: 0 | AL59: 0 | AM59: 4 | AN59: 4 | AO59: 0 | AP59: 0 | AQ59: 0 | AR59: 0 | AS59: 2 | AT59: 1 | AU59: 1 | AV59: 4 | AW59: 0 | AX59: 4
B60: 55 | C60: 331 | D60: 228 | E60: 103 | F60: 147 | G60: 108 | H60: 39 | I60: 44 | J60: 28 | K60: 16 | L60: 15 | M60: 10 | N60: 5 | O60: 2 | P60: 1 | Q60: 1 | R60: 19 | S60: 16 | T60: 3 | U60: 29 | V60: 19 | W60: 10 | X60: 0 | Y60: 0 | Z60: 0 | AA60: 40 | AB60: 25 | AC60: 15 | AD60: 21 | AE60: 13 | AF60: 8 | AG60: 1 | AH60: 1 | AI60: 0 | AJ60: 2 | AK60: 1 | AL60: 1 | AM60: 7 | AN60: 4 | AO60: 3 | AP60: 0 | AQ60: 0 | AR60: 0 | AS60: 2 | AT60: 1 | AU60: 1 | AV60: 2 | AW60: 1 | AX60: 1
B61: 56 | C61: 328 | D61: 221 | E61: 107 | F61: 141 | G61: 107 | H61: 34 | I61: 33 | J61: 19 | K61: 14 | L61: 19 | M61: 11 | N61: 8 | O61: 4 | P61: 2 | Q61: 2 | R61: 19 | S61: 12 | T61: 7 | U61: 30 | V61: 18 | W61: 12 | X61: 0 | Y61: 0 | Z61: 0 | AA61: 50 | AB61: 32 | AC61: 18 | AD61: 23 | AE61: 15 | AF61: 8 | AG61: 1 | AH61: 0 | AI61: 1 | AJ61: 0 | AK61: 0 | AL61: 0 | AM61: 5 | AN61: 5 | AO61: 0 | AP61: 0 | AQ61: 0 | AR61: 0 | AS61: 1 | AT61: 0 | AU61: 1 | AV61: 2 | AW61: 0 | AX61: 2
B62: 57 | C62: 367 | D62: 253 | E62: 114 | F62: 163 | G62: 112 | H62: 51 | I62: 43 | J62: 27 | K62: 16 | L62: 23 | M62: 14 | N62: 9 | O62: 5 | P62: 3 | Q62: 2 | R62: 16 | S62: 13 | T62: 3 | U62: 35 | V62: 26 | W62: 9 | X62: 0 | Y62: 0 | Z62: 0 | AA62: 50 | AB62: 33 | AC62: 17 | AD62: 24 | AE62: 19 | AF62: 5 | AG62: 0 | AH62: 0 | AI62: 0 | AJ62: 1 | AK62: 0 | AL62: 1 | AM62: 4 | AN62: 4 | AO62: 0 | AP62: 1 | AQ62: 1 | AR62: 0 | AS62: 1 | AT62: 0 | AU62: 1 | AV62: 1 | AW62: 1 | AX62: 0
B63: 58 | C63: 331 | D63: 208 | E63: 123 | F63: 136 | G63: 90 | H63: 46 | I63: 44 | J63: 26 | K63: 18 | L63: 25 | M63: 13 | N63: 12 | O63: 4 | P63: 4 | Q63: 0 | R63: 20 | S63: 14 | T63: 6 | U63: 30 | V63: 21 | W63: 9 | X63: 0 | Y63: 0 | Z63: 0 | AA63: 31 | AB63: 16 | AC63: 15 | AD63: 26 | AE63: 12 | AF63: 14 | AG63: 2 | AH63: 2 | AI63: 0 | AJ63: 2 | AK63: 2 | AL63: 0 | AM63: 6 | AN63: 4 | AO63: 2 | AP63: 0 | AQ63: 0 | AR63: 0 | AS63: 4 | AT63: 3 | AU63: 1 | AV63: 1 | AW63: 1 | AX63: 0
B64: 59 | C64: 321 | D64: 215 | E64: 106 | F64: 142 | G64: 101 | H64: 41 | I64: 38 | J64: 22 | K64: 16 | L64: 34 | M64: 21 | N64: 13 | O64: 3 | P64: 2 | Q64: 1 | R64: 12 | S64: 6 | T64: 6 | U64: 32 | V64: 22 | W64: 10 | X64: 0 | Y64: 0 | Z64: 0 | AA64: 32 | AB64: 19 | AC64: 13 | AD64: 18 | AE64: 13 | AF64: 5 | AG64: 0 | AH64: 0 | AI64: 0 | AJ64: 1 | AK64: 1 | AL64: 0 | AM64: 7 | AN64: 6 | AO64: 1 | AP64: 0 | AQ64: 0 | AR64: 0 | AS64: 2 | AT64: 2 | AU64: 0 | AV64: 0 | AW64: 0 | AX64: 0
B65: 60 | C65: 355 | D65: 245 | E65: 110 | F65: 171 | G65: 121 | H65: 50 | I65: 40 | J65: 28 | K65: 12 | L65: 26 | M65: 17 | N65: 9 | O65: 2 | P65: 1 | Q65: 1 | R65: 12 | S65: 8 | T65: 4 | U65: 41 | V65: 33 | W65: 8 | X65: 0 | Y65: 0 | Z65: 0 | AA65: 24 | AB65: 14 | AC65: 10 | AD65: 29 | AE65: 16 | AF65: 13 | AG65: 2 | AH65: 1 | AI65: 1 | AJ65: 1 | AK65: 0 | AL65: 1 | AM65: 4 | AN65: 3 | AO65: 1 | AP65: 0 | AQ65: 0 | AR65: 0 | AS65: 3 | AT65: 3 | AU65: 0 | AV65: 0 | AW65: 0 | AX65: 0
B66: 61 | C66: 407 | D66: 275 | E66: 132 | F66: 202 | G66: 142 | H66: 60 | I66: 50 | J66: 33 | K66: 17 | L66: 30 | M66: 20 | N66: 10 | O66: 4 | P66: 4 | Q66: 0 | R66: 17 | S66: 15 | T66: 2 | U66: 37 | V66: 22 | W66: 15 | X66: 0 | Y66: 0 | Z66: 0 | AA66: 28 | AB66: 16 | AC66: 12 | AD66: 26 | AE66: 16 | AF66: 10 | AG66: 1 | AH66: 0 | AI66: 1 | AJ66: 1 | AK66: 1 | AL66: 0 | AM66: 8 | AN66: 5 | AO66: 3 | AP66: 1 | AQ66: 0 | AR66: 1 | AS66: 2 | AT66: 1 | AU66: 1 | AV66: 0 | AW66: 0 | AX66: 0
B67: 62 | C67: 383 | D67: 273 | E67: 110 | F67: 172 | G67: 120 | H67: 52 | I67: 44 | J67: 33 | K67: 11 | L67: 36 | M67: 25 | N67: 11 | O67: 3 | P67: 3 | Q67: 0 | R67: 13 | S67: 12 | T67: 1 | U67: 37 | V67: 29 | W67: 8 | X67: 0 | Y67: 0 | Z67: 0 | AA67: 40 | AB67: 25 | AC67: 15 | AD67: 21 | AE67: 13 | AF67: 8 | AG67: 1 | AH67: 1 | AI67: 0 | AJ67: 4 | AK67: 2 | AL67: 2 | AM67: 3 | AN67: 2 | AO67: 1 | AP67: 0 | AQ67: 0 | AR67: 0 | AS67: 4 | AT67: 4 | AU67: 0 | AV67: 5 | AW67: 4 | AX67: 1
B68: 63 | C68: 516 | D68: 332 | E68: 184 | F68: 246 | G68: 162 | H68: 84 | I68: 57 | J68: 35 | K68: 22 | L68: 51 | M68: 31 | N68: 20 | O68: 2 | P68: 2 | Q68: 0 | R68: 20 | S68: 13 | T68: 7 | U68: 58 | V68: 34 | W68: 24 | X68: 0 | Y68: 0 | Z68: 0 | AA68: 37 | AB68: 26 | AC68: 11 | AD68: 24 | AE68: 17 | AF68: 7 | AG68: 2 | AH68: 2 | AI68: 0 | AJ68: 2 | AK68: 1 | AL68: 1 | AM68: 8 | AN68: 4 | AO68: 4 | AP68: 0 | AQ68: 0 | AR68: 0 | AS68: 7 | AT68: 3 | AU68: 4 | AV68: 2 | AW68: 2 | AX68: 0
B69: 64 | C69: 531 | D69: 349 | E69: 182 | F69: 243 | G69: 159 | H69: 84 | I69: 60 | J69: 41 | K69: 19 | L69: 54 | M69: 29 | N69: 25 | O69: 9 | P69: 7 | Q69: 2 | R69: 15 | S69: 12 | T69: 3 | U69: 47 | V69: 34 | W69: 13 | X69: 0 | Y69: 0 | Z69: 0 | AA69: 39 | AB69: 27 | AC69: 12 | AD69: 39 | AE69: 24 | AF69: 15 | AG69: 2 | AH69: 2 | AI69: 0 | AJ69: 5 | AK69: 3 | AL69: 2 | AM69: 9 | AN69: 6 | AO69: 3 | AP69: 0 | AQ69: 0 | AR69: 0 | AS69: 7 | AT69: 3 | AU69: 4 | AV69: 2 | AW69: 2 | AX69: 0
B70: 65 | C70: 501 | D70: 333 | E70: 168 | F70: 228 | G70: 160 | H70: 68 | I70: 50 | J70: 36 | K70: 14 | L70: 53 | M70: 28 | N70: 25 | O70: 4 | P70: 2 | Q70: 2 | R70: 17 | S70: 10 | T70: 7 | U70: 59 | V70: 41 | W70: 18 | X70: 0 | Y70: 0 | Z70: 0 | AA70: 42 | AB70: 25 | AC70: 17 | AD70: 30 | AE70: 19 | AF70: 11 | AG70: 0 | AH70: 0 | AI70: 0 | AJ70: 6 | AK70: 4 | AL70: 2 | AM70: 6 | AN70: 4 | AO70: 2 | AP70: 1 | AQ70: 1 | AR70: 0 | AS70: 5 | AT70: 3 | AU70: 2 | AV70: 0 | AW70: 0 | AX70: 0
B71: 66 | C71: 470 | D71: 286 | E71: 184 | F71: 245 | G71: 150 | H71: 95 | I71: 44 | J71: 26 | K71: 18 | L71: 50 | M71: 31 | N71: 19 | O71: 6 | P71: 2 | Q71: 4 | R71: 5 | S71: 3 | T71: 2 | U71: 65 | V71: 41 | W71: 24 | X71: 0 | Y71: 0 | Z71: 0 | AA71: 21 | AB71: 15 | AC71: 6 | AD71: 25 | AE71: 11 | AF71: 14 | AG71: 0 | AH71: 0 | AI71: 0 | AJ71: 2 | AK71: 1 | AL71: 1 | AM71: 2 | AN71: 2 | AO71: 0 | AP71: 3 | AQ71: 3 | AR71: 0 | AS71: 2 | AT71: 1 | AU71: 1 | AV71: 0 | AW71: 0 | AX71: 0
B72: 67 | C72: 475 | D72: 289 | E72: 186 | F72: 244 | G72: 140 | H72: 104 | I72: 42 | J72: 25 | K72: 17 | L72: 54 | M72: 34 | N72: 20 | O72: 2 | P72: 1 | Q72: 1 | R72: 10 | S72: 7 | T72: 3 | U72: 46 | V72: 31 | W72: 15 | X72: 0 | Y72: 0 | Z72: 0 | AA72: 29 | AB72: 19 | AC72: 10 | AD72: 26 | AE72: 16 | AF72: 10 | AG72: 2 | AH72: 2 | AI72: 0 | AJ72: 8 | AK72: 4 | AL72: 4 | AM72: 6 | AN72: 5 | AO72: 1 | AP72: 1 | AQ72: 1 | AR72: 0 | AS72: 4 | AT72: 3 | AU72: 1 | AV72: 1 | AW72: 1 | AX72: 0
B73: 68 | C73: 473 | D73: 278 | E73: 195 | F73: 236 | G73: 135 | H73: 101 | I73: 45 | J73: 27 | K73: 18 | L73: 59 | M73: 29 | N73: 30 | O73: 4 | P73: 3 | Q73: 1 | R73: 11 | S73: 6 | T73: 5 | U73: 52 | V73: 36 | W73: 16 | X73: 0 | Y73: 0 | Z73: 0 | AA73: 23 | AB73: 19 | AC73: 4 | AD73: 33 | AE73: 18 | AF73: 15 | AG73: 1 | AH73: 0 | AI73: 1 | AJ73: 4 | AK73: 3 | AL73: 1 | AM73: 2 | AN73: 1 | AO73: 1 | AP73: 0 | AQ73: 0 | AR73: 0 | AS73: 1 | AT73: 0 | AU73: 1 | AV73: 2 | AW73: 1 | AX73: 1
B74: 69 | C74: 525 | D74: 308 | E74: 217 | F74: 261 | G74: 147 | H74: 114 | I74: 54 | J74: 35 | K74: 19 | L74: 55 | M74: 26 | N74: 29 | O74: 5 | P74: 4 | Q74: 1 | R74: 7 | S74: 3 | T74: 4 | U74: 62 | V74: 39 | W74: 23 | X74: 0 | Y74: 0 | Z74: 0 | AA74: 28 | AB74: 16 | AC74: 12 | AD74: 29 | AE74: 20 | AF74: 9 | AG74: 2 | AH74: 1 | AI74: 1 | AJ74: 9 | AK74: 7 | AL74: 2 | AM74: 5 | AN74: 5 | AO74: 0 | AP74: 0 | AQ74: 0 | AR74: 0 | AS74: 6 | AT74: 3 | AU74: 3 | AV74: 2 | AW74: 2 | AX74: 0
B75: 70 | C75: 493 | D75: 275 | E75: 218 | F75: 251 | G75: 131 | H75: 120 | I75: 49 | J75: 28 | K75: 21 | L75: 68 | M75: 46 | N75: 22 | O75: 4 | P75: 4 | Q75: 0 | R75: 4 | S75: 3 | T75: 1 | U75: 60 | V75: 31 | W75: 29 | X75: 0 | Y75: 0 | Z75: 0 | AA75: 13 | AB75: 4 | AC75: 9 | AD75: 26 | AE75: 18 | AF75: 8 | AG75: 0 | AH75: 0 | AI75: 0 | AJ75: 5 | AK75: 3 | AL75: 2 | AM75: 7 | AN75: 4 | AO75: 3 | AP75: 0 | AQ75: 0 | AR75: 0 | AS75: 5 | AT75: 3 | AU75: 2 | AV75: 1 | AW75: 0 | AX75: 1
B76: 71 | C76: 472 | D76: 281 | E76: 191 | F76: 228 | G76: 120 | H76: 108 | I76: 58 | J76: 29 | K76: 29 | L76: 65 | M76: 46 | N76: 19 | O76: 2 | P76: 2 | Q76: 0 | R76: 4 | S76: 3 | T76: 1 | U76: 53 | V76: 42 | W76: 11 | X76: 0 | Y76: 0 | Z76: 0 | AA76: 21 | AB76: 14 | AC76: 7 | AD76: 28 | AE76: 17 | AF76: 11 | AG76: 0 | AH76: 0 | AI76: 0 | AJ76: 2 | AK76: 1 | AL76: 1 | AM76: 4 | AN76: 2 | AO76: 2 | AP76: 0 | AQ76: 0 | AR76: 0 | AS76: 7 | AT76: 5 | AU76: 2 | AV76: 0 | AW76: 0 | AX76: 0
B77: 72 | C77: 487 | D77: 283 | E77: 204 | F77: 235 | G77: 119 | H77: 116 | I77: 53 | J77: 34 | K77: 19 | L77: 78 | M77: 47 | N77: 31 | O77: 4 | P77: 4 | Q77: 0 | R77: 7 | S77: 6 | T77: 1 | U77: 60 | V77: 40 | W77: 20 | X77: 0 | Y77: 0 | Z77: 0 | AA77: 14 | AB77: 10 | AC77: 4 | AD77: 23 | AE77: 15 | AF77: 8 | AG77: 0 | AH77: 0 | AI77: 0 | AJ77: 2 | AK77: 2 | AL77: 0 | AM77: 4 | AN77: 2 | AO77: 2 | AP77: 1 | AQ77: 0 | AR77: 1 | AS77: 6 | AT77: 4 | AU77: 2 | AV77: 0 | AW77: 0 | AX77: 0
B78: 73 | C78: 418 | D78: 210 | E78: 208 | F78: 205 | G78: 81 | H78: 124 | I78: 35 | J78: 18 | K78: 17 | L78: 79 | M78: 51 | N78: 28 | O78: 6 | P78: 6 | Q78: 0 | R78: 7 | S78: 5 | T78: 2 | U78: 42 | V78: 22 | W78: 20 | X78: 0 | Y78: 0 | Z78: 0 | AA78: 9 | AB78: 3 | AC78: 6 | AD78: 24 | AE78: 15 | AF78: 9 | AG78: 0 | AH78: 0 | AI78: 0 | AJ78: 4 | AK78: 4 | AL78: 0 | AM78: 3 | AN78: 3 | AO78: 0 | AP78: 1 | AQ78: 1 | AR78: 0 | AS78: 3 | AT78: 1 | AU78: 2 | AV78: 0 | AW78: 0 | AX78: 0
B79: 74 | C79: 537 | D79: 302 | E79: 235 | F79: 248 | G79: 124 | H79: 124 | I79: 61 | J79: 30 | K79: 31 | L79: 103 | M79: 69 | N79: 34 | O79: 2 | P79: 1 | Q79: 1 | R79: 6 | S79: 6 | T79: 0 | U79: 58 | V79: 33 | W79: 25 | X79: 0 | Y79: 0 | Z79: 0 | AA79: 18 | AB79: 14 | AC79: 4 | AD79: 27 | AE79: 15 | AF79: 12 | AG79: 0 | AH79: 0 | AI79: 0 | AJ79: 6 | AK79: 5 | AL79: 1 | AM79: 4 | AN79: 4 | AO79: 0 | AP79: 0 | AQ79: 0 | AR79: 0 | AS79: 4 | AT79: 1 | AU79: 3 | AV79: 0 | AW79: 0 | AX79: 0
B80: 75 | C80: 511 | D80: 269 | E80: 242 | F80: 245 | G80: 109 | H80: 136 | I80: 69 | J80: 38 | K80: 31 | L80: 94 | M80: 56 | N80: 38 | O80: 1 | P80: 1 | Q80: 0 | R80: 3 | S80: 2 | T80: 1 | U80: 54 | V80: 32 | W80: 22 | X80: 0 | Y80: 0 | Z80: 0 | AA80: 7 | AB80: 6 | AC80: 1 | AD80: 27 | AE80: 16 | AF80: 11 | AG80: 0 | AH80: 0 | AI80: 0 | AJ80: 5 | AK80: 5 | AL80: 0 | AM80: 3 | AN80: 3 | AO80: 0 | AP80: 0 | AQ80: 0 | AR80: 0 | AS80: 1 | AT80: 1 | AU80: 0 | AV80: 2 | AW80: 0 | AX80: 2
B81: 76 | C81: 534 | D81: 273 | E81: 261 | F81: 253 | G81: 120 | H81: 133 | I81: 67 | J81: 34 | K81: 33 | L81: 110 | M81: 70 | N81: 40 | O81: 7 | P81: 5 | Q81: 2 | R81: 0 | S81: 0 | T81: 0 | U81: 54 | V81: 26 | W81: 28 | X81: 0 | Y81: 0 | Z81: 0 | AA81: 9 | AB81: 3 | AC81: 6 | AD81: 18 | AE81: 7 | AF81: 11 | AG81: 0 | AH81: 0 | AI81: 0 | AJ81: 5 | AK81: 3 | AL81: 2 | AM81: 4 | AN81: 1 | AO81: 3 | AP81: 0 | AQ81: 0 | AR81: 0 | AS81: 7 | AT81: 4 | AU81: 3 | AV81: 0 | AW81: 0 | AX81: 0
B82: 77 | C82: 570 | D82: 301 | E82: 269 | F82: 261 | G82: 115 | H82: 146 | I82: 82 | J82: 45 | K82: 37 | L82: 126 | M82: 83 | N82: 43 | O82: 2 | P82: 1 | Q82: 1 | R82: 3 | S82: 1 | T82: 2 | U82: 60 | V82: 33 | W82: 27 | X82: 0 | Y82: 0 | Z82: 0 | AA82: 5 | AB82: 2 | AC82: 3 | AD82: 19 | AE82: 15 | AF82: 4 | AG82: 1 | AH82: 0 | AI82: 1 | AJ82: 2 | AK82: 2 | AL82: 0 | AM82: 1 | AN82: 0 | AO82: 1 | AP82: 0 | AQ82: 0 | AR82: 0 | AS82: 8 | AT82: 4 | AU82: 4 | AV82: 0 | AW82: 0 | AX82: 0
B83: 78 | C83: 426 | D83: 224 | E83: 202 | F83: 214 | G83: 90 | H83: 124 | I83: 56 | J83: 25 | K83: 31 | L83: 88 | M83: 64 | N83: 24 | O83: 4 | P83: 3 | Q83: 1 | R83: 0 | S83: 0 | T83: 0 | U83: 36 | V83: 22 | W83: 14 | X83: 0 | Y83: 0 | Z83: 0 | AA83: 3 | AB83: 3 | AC83: 0 | AD83: 13 | AE83: 8 | AF83: 5 | AG83: 0 | AH83: 0 | AI83: 0 | AJ83: 5 | AK83: 5 | AL83: 0 | AM83: 1 | AN83: 0 | AO83: 1 | AP83: 0 | AQ83: 0 | AR83: 0 | AS83: 6 | AT83: 4 | AU83: 2 | AV83: 0 | AW83: 0 | AX83: 0
B84: 79 | C84: 474 | D84: 232 | E84: 242 | F84: 213 | G84: 90 | H84: 123 | I84: 50 | J84: 30 | K84: 20 | L84: 121 | M84: 68 | N84: 53 | O84: 3 | P84: 2 | Q84: 1 | R84: 1 | S84: 0 | T84: 1 | U84: 55 | V84: 22 | W84: 33 | X84: 0 | Y84: 0 | Z84: 0 | AA84: 5 | AB84: 3 | AC84: 2 | AD84: 12 | AE84: 7 | AF84: 5 | AG84: 1 | AH84: 0 | AI84: 1 | AJ84: 5 | AK84: 3 | AL84: 2 | AM84: 1 | AN84: 1 | AO84: 0 | AP84: 1 | AQ84: 1 | AR84: 0 | AS84: 6 | AT84: 5 | AU84: 1 | AV84: 0 | AW84: 0 | AX84: 0
B85: 80 | C85: 473 | D85: 233 | E85: 240 | F85: 207 | G85: 78 | H85: 129 | I85: 48 | J85: 23 | K85: 25 | L85: 135 | M85: 78 | N85: 57 | O85: 3 | P85: 3 | Q85: 0 | R85: 3 | S85: 2 | T85: 1 | U85: 45 | V85: 25 | W85: 20 | X85: 0 | Y85: 0 | Z85: 0 | AA85: 4 | AB85: 4 | AC85: 0 | AD85: 16 | AE85: 11 | AF85: 5 | AG85: 0 | AH85: 0 | AI85: 0 | AJ85: 2 | AK85: 2 | AL85: 0 | AM85: 1 | AN85: 0 | AO85: 1 | AP85: 1 | AQ85: 1 | AR85: 0 | AS85: 7 | AT85: 6 | AU85: 1 | AV85: 1 | AW85: 0 | AX85: 1
B86: 81 | C86: 544 | D86: 252 | E86: 292 | F86: 242 | G86: 76 | H86: 166 | I86: 69 | J86: 39 | K86: 30 | L86: 160 | M86: 97 | N86: 63 | O86: 4 | P86: 3 | Q86: 1 | R86: 0 | S86: 0 | T86: 0 | U86: 37 | V86: 17 | W86: 20 | X86: 0 | Y86: 0 | Z86: 0 | AA86: 2 | AB86: 2 | AC86: 0 | AD86: 16 | AE86: 9 | AF86: 7 | AG86: 0 | AH86: 0 | AI86: 0 | AJ86: 5 | AK86: 4 | AL86: 1 | AM86: 1 | AN86: 0 | AO86: 1 | AP86: 1 | AQ86: 0 | AR86: 1 | AS86: 7 | AT86: 5 | AU86: 2 | AV86: 0 | AW86: 0 | AX86: 0
B87: 82 | C87: 558 | D87: 261 | E87: 297 | F87: 253 | G87: 92 | H87: 161 | I87: 62 | J87: 29 | K87: 33 | L87: 155 | M87: 87 | N87: 68 | O87: 1 | P87: 0 | Q87: 1 | R87: 2 | S87: 2 | T87: 0 | U87: 53 | V87: 31 | W87: 22 | X87: 0 | Y87: 0 | Z87: 0 | AA87: 2 | AB87: 0 | AC87: 2 | AD87: 15 | AE87: 10 | AF87: 5 | AG87: 0 | AH87: 0 | AI87: 0 | AJ87: 2 | AK87: 2 | AL87: 0 | AM87: 2 | AN87: 0 | AO87: 2 | AP87: 0 | AQ87: 0 | AR87: 0 | AS87: 9 | AT87: 7 | AU87: 2 | AV87: 2 | AW87: 1 | AX87: 1
B88: 83 | C88: 419 | D88: 190 | E88: 229 | F88: 168 | G88: 63 | H88: 105 | I88: 51 | J88: 26 | K88: 25 | L88: 132 | M88: 71 | N88: 61 | O88: 1 | P88: 1 | Q88: 0 | R88: 2 | S88: 2 | T88: 0 | U88: 37 | V88: 13 | W88: 24 | X88: 0 | Y88: 0 | Z88: 0 | AA88: 3 | AB88: 1 | AC88: 2 | AD88: 19 | AE88: 10 | AF88: 9 | AG88: 0 | AH88: 0 | AI88: 0 | AJ88: 1 | AK88: 0 | AL88: 1 | AM88: 0 | AN88: 0 | AO88: 0 | AP88: 0 | AQ88: 0 | AR88: 0 | AS88: 5 | AT88: 3 | AU88: 2 | AV88: 0 | AW88: 0 | AX88: 0
B89: 84 | C89: 397 | D89: 191 | E89: 206 | F89: 159 | G89: 59 | H89: 100 | I89: 39 | J89: 17 | K89: 22 | L89: 142 | M89: 85 | N89: 57 | O89: 4 | P89: 3 | Q89: 1 | R89: 0 | S89: 0 | T89: 0 | U89: 34 | V89: 16 | W89: 18 | X89: 0 | Y89: 0 | Z89: 0 | AA89: 0 | AB89: 0 | AC89: 0 | AD89: 12 | AE89: 7 | AF89: 5 | AG89: 0 | AH89: 0 | AI89: 0 | AJ89: 0 | AK89: 0 | AL89: 0 | AM89: 1 | AN89: 1 | AO89: 0 | AP89: 1 | AQ89: 0 | AR89: 1 | AS89: 5 | AT89: 3 | AU89: 2 | AV89: 0 | AW89: 0 | AX89: 0
A90: 합계 | B90: 85 | C90: 368 | D90: 161 | E90: 207 | F90: 139 | G90: 44 | H90: 95 | I90: 46 | J90: 23 | K90: 23 | L90: 125 | M90: 69 | N90: 56 | O90: 1 | P90: 1 | Q90: 0 | R90: 0 | S90: 0 | T90: 0 | U90: 36 | V90: 13 | W90: 23 | X90: 0 | Y90: 0 | Z90: 0 | AA90: 1 | AB90: 0 | AC90: 1 | AD90: 13 | AE90: 4 | AF90: 9 | AG90: 0 | AH90: 0 | AI90: 0 | AJ90: 2 | AK90: 2 | AL90: 0 | AM90: 0 | AN90: 0 | AO90: 0 | AP90: 0 | AQ90: 0 | AR90: 0 | AS90: 5 | AT90: 5 | AU90: 0 | AV90: 0 | AW90: 0 | AX90: 0
B91: 86 | C91: 344 | D91: 145 | E91: 199 | F91: 126 | G91: 41 | H91: 85 | I91: 26 | J91: 12 | K91: 14 | L91: 126 | M91: 61 | N91: 65 | O91: 2 | P91: 2 | Q91: 0 | R91: 2 | S91: 1 | T91: 1 | U91: 39 | V91: 13 | W91: 26 | X91: 0 | Y91: 0 | Z91: 0 | AA91: 0 | AB91: 0 | AC91: 0 | AD91: 12 | AE91: 7 | AF91: 5 | AG91: 1 | AH91: 1 | AI91: 0 | AJ91: 1 | AK91: 1 | AL91: 0 | AM91: 0 | AN91: 0 | AO91: 0 | AP91: 0 | AQ91: 0 | AR91: 0 | AS91: 9 | AT91: 6 | AU91: 3 | AV91: 0 | AW91: 0 | AX91: 0
B92: 87 | C92: 321 | D92: 133 | E92: 188 | F92: 133 | G92: 39 | H92: 94 | I92: 21 | J92: 12 | K92: 9 | L92: 119 | M92: 57 | N92: 62 | O92: 1 | P92: 1 | Q92: 0 | R92: 1 | S92: 1 | T92: 0 | U92: 31 | V92: 13 | W92: 18 | X92: 0 | Y92: 0 | Z92: 0 | AA92: 1 | AB92: 1 | AC92: 0 | AD92: 12 | AE92: 7 | AF92: 5 | AG92: 0 | AH92: 0 | AI92: 0 | AJ92: 1 | AK92: 1 | AL92: 0 | AM92: 0 | AN92: 0 | AO92: 0 | AP92: 0 | AQ92: 0 | AR92: 0 | AS92: 1 | AT92: 1 | AU92: 0 | AV92: 0 | AW92: 0 | AX92: 0
B93: 88 | C93: 246 | D93: 105 | E93: 141 | F93: 81 | G93: 24 | H93: 57 | I93: 24 | J93: 11 | K93: 13 | L93: 106 | M93: 48 | N93: 58 | O93: 1 | P93: 0 | Q93: 1 | R93: 0 | S93: 0 | T93: 0 | U93: 23 | V93: 13 | W93: 10 | X93: 0 | Y93: 0 | Z93: 0 | AA93: 0 | AB93: 0 | AC93: 0 | AD93: 7 | AE93: 5 | AF93: 2 | AG93: 1 | AH93: 1 | AI93: 0 | AJ93: 0 | AK93: 0 | AL93: 0 | AM93: 0 | AN93: 0 | AO93: 0 | AP93: 0 | AQ93: 0 | AR93: 0 | AS93: 3 | AT93: 3 | AU93: 0 | AV93: 0 | AW93: 0 | AX93: 0
B94: 89 | C94: 203 | D94: 64 | E94: 139 | F94: 77 | G94: 13 | H94: 64 | I94: 20 | J94: 5 | K94: 15 | L94: 78 | M94: 37 | N94: 41 | O94: 0 | P94: 0 | Q94: 0 | R94: 1 | S94: 0 | T94: 1 | U94: 16 | V94: 3 | W94: 13 | X94: 0 | Y94: 0 | Z94: 0 | AA94: 1 | AB94: 0 | AC94: 1 | AD94: 7 | AE94: 4 | AF94: 3 | AG94: 0 | AH94: 0 | AI94: 0 | AJ94: 0 | AK94: 0 | AL94: 0 | AM94: 0 | AN94: 0 | AO94: 0 | AP94: 0 | AQ94: 0 | AR94: 0 | AS94: 3 | AT94: 2 | AU94: 1 | AV94: 0 | AW94: 0 | AX94: 0
B95: 90 | C95: 172 | D95: 62 | E95: 110 | F95: 59 | G95: 12 | H95: 47 | I95: 12 | J95: 3 | K95: 9 | L95: 85 | M95: 42 | N95: 43 | O95: 0 | P95: 0 | Q95: 0 | R95: 0 | S95: 0 | T95: 0 | U95: 15 | V95: 5 | W95: 10 | X95: 0 | Y95: 0 | Z95: 0 | AA95: 0 | AB95: 0 | AC95: 0 | AD95: 0 | AE95: 0 | AF95: 0 | AG95: 0 | AH95: 0 | AI95: 0 | AJ95: 0 | AK95: 0 | AL95: 0 | AM95: 0 | AN95: 0 | AO95: 0 | AP95: 0 | AQ95: 0 | AR95: 0 | AS95: 1 | AT95: 0 | AU95: 1 | AV95: 0 | AW95: 0 | AX95: 0
B96: 91 | C96: 109 | D96: 41 | E96: 68 | F96: 27 | G96: 7 | H96: 20 | I96: 13 | J96: 6 | K96: 7 | L96: 58 | M96: 24 | N96: 34 | O96: 3 | P96: 2 | Q96: 1 | R96: 0 | S96: 0 | T96: 0 | U96: 8 | V96: 2 | W96: 6 | X96: 0 | Y96: 0 | Z96: 0 | AA96: 0 | AB96: 0 | AC96: 0 | AD96: 0 | AE96: 0 | AF96: 0 | AG96: 0 | AH96: 0 | AI96: 0 | AJ96: 0 | AK96: 0 | AL96: 0 | AM96: 0 | AN96: 0 | AO96: 0 | AP96: 0 | AQ96: 0 | AR96: 0 | AS96: 0 | AT96: 0 | AU96: 0 | AV96: 0 | AW96: 0 | AX96: 0
B97: 92 | C97: 83 | D97: 21 | E97: 62 | F97: 23 | G97: 4 | H97: 19 | I97: 4 | J97: 2 | K97: 2 | L97: 48 | M97: 15 | N97: 33 | O97: 1 | P97: 0 | Q97: 1 | R97: 0 | S97: 0 | T97: 0 | U97: 5 | V97: 0 | W97: 5 | X97: 0 | Y97: 0 | Z97: 0 | AA97: 0 | AB97: 0 | AC97: 0 | AD97: 2 | AE97: 0 | AF97: 2 | AG97: 0 | AH97: 0 | AI97: 0 | AJ97: 0 | AK97: 0 | AL97: 0 | AM97: 0 | AN97: 0 | AO97: 0 | AP97: 0 | AQ97: 0 | AR97: 0 | AS97: 0 | AT97: 0 | AU97: 0 | AV97: 0 | AW97: 0 | AX97: 0
B98: 93 | C98: 62 | D98: 23 | E98: 39 | F98: 16 | G98: 5 | H98: 11 | I98: 11 | J98: 3 | K98: 8 | L98: 30 | M98: 13 | N98: 17 | O98: 0 | P98: 0 | Q98: 0 | R98: 0 | S98: 0 | T98: 0 | U98: 3 | V98: 1 | W98: 2 | X98: 0 | Y98: 0 | Z98: 0 | AA98: 0 | AB98: 0 | AC98: 0 | AD98: 1 | AE98: 0 | AF98: 1 | AG98: 0 | AH98: 0 | AI98: 0 | AJ98: 0 | AK98: 0 | AL98: 0 | AM98: 0 | AN98: 0 | AO98: 0 | AP98: 0 | AQ98: 0 | AR98: 0 | AS98: 1 | AT98: 1 | AU98: 0 | AV98: 0 | AW98: 0 | AX98: 0
B99: 94 | C99: 40 | D99: 8 | E99: 32 | F99: 13 | G99: 0 | H99: 13 | I99: 2 | J99: 1 | K99: 1 | L99: 23 | M99: 6 | N99: 17 | O99: 0 | P99: 0 | Q99: 0 | R99: 0 | S99: 0 | T99: 0 | U99: 1 | V99: 0 | W99: 1 | X99: 0 | Y99: 0 | Z99: 0 | AA99: 0 | AB99: 0 | AC99: 0 | AD99: 1 | AE99: 1 | AF99: 0 | AG99: 0 | AH99: 0 | AI99: 0 | AJ99: 0 | AK99: 0 | AL99: 0 | AM99: 0 | AN99: 0 | AO99: 0 | AP99: 0 | AQ99: 0 | AR99: 0 | AS99: 0 | AT99: 0 | AU99: 0 | AV99: 0 | AW99: 0 | AX99: 0
B100: 95 | C100: 41 | D100: 20 | E100: 21 | F100: 10 | G100: 3 | H100: 7 | I100: 4 | J100: 2 | K100: 2 | L100: 22 | M100: 12 | N100: 10 | O100: 0 | P100: 0 | Q100: 0 | R100: 0 | S100: 0 | T100: 0 | U100: 3 | V100: 1 | W100: 2 | X100: 0 | Y100: 0 | Z100: 0 | AA100: 0 | AB100: 0 | AC100: 0 | AD100: 0 | AE100: 0 | AF100: 0 | AG100: 0 | AH100: 0 | AI100: 0 | AJ100: 1 | AK100: 1 | AL100: 0 | AM100: 0 | AN100: 0 | AO100: 0 | AP100: 0 | AQ100: 0 | AR100: 0 | AS100: 1 | AT100: 1 | AU100: 0 | AV100: 0 | AW100: 0 | AX100: 0
B101: 96 | C101: 26 | D101: 9 | E101: 17 | F101: 7 | G101: 1 | H101: 6 | I101: 2 | J101: 0 | K101: 2 | L101: 15 | M101: 7 | N101: 8 | O101: 0 | P101: 0 | Q101: 0 | R101: 0 | S101: 0 | T101: 0 | U101: 0 | V101: 0 | W101: 0 | X101: 0 | Y101: 0 | Z101: 0 | AA101: 0 | AB101: 0 | AC101: 0 | AD101: 0 | AE101: 0 | AF101: 0 | AG101: 0 | AH101: 0 | AI101: 0 | AJ101: 0 | AK101: 0 | AL101: 0 | AM101: 0 | AN101: 0 | AO101: 0 | AP101: 0 | AQ101: 0 | AR101: 0 | AS101: 2 | AT101: 1 | AU101: 1 | AV101: 0 | AW101: 0 | AX101: 0
B102: 97 | C102: 9 | D102: 4 | E102: 5 | F102: 4 | G102: 1 | H102: 3 | I102: 1 | J102: 1 | K102: 0 | L102: 4 | M102: 2 | N102: 2 | O102: 0 | P102: 0 | Q102: 0 | R102: 0 | S102: 0 | T102: 0 | U102: 0 | V102: 0 | W102: 0 | X102: 0 | Y102: 0 | Z102: 0 | AA102: 0 | AB102: 0 | AC102: 0 | AD102: 0 | AE102: 0 | AF102: 0 | AG102: 0 | AH102: 0 | AI102: 0 | AJ102: 0 | AK102: 0 | AL102: 0 | AM102: 0 | AN102: 0 | AO102: 0 | AP102: 0 | AQ102: 0 | AR102: 0 | AS102: 0 | AT102: 0 | AU102: 0 | AV102: 0 | AW102: 0 | AX102: 0
B103: 98 | C103: 8 | D103: 1 | E103: 7 | F103: 0 | G103: 0 | H103: 0 | I103: 0 | J103: 0 | K103: 0 | L103: 7 | M103: 1 | N103: 6 | O103: 0 | P103: 0 | Q103: 0 | R103: 0 | S103: 0 | T103: 0 | U103: 0 | V103: 0 | W103: 0 | X103: 0 | Y103: 0 | Z103: 0 | AA103: 0 | AB103: 0 | AC103: 0 | AD103: 0 | AE103: 0 | AF103: 0 | AG103: 0 | AH103: 0 | AI103: 0 | AJ103: 0 | AK103: 0 | AL103: 0 | AM103: 0 | AN103: 0 | AO103: 0 | AP103: 0 | AQ103: 0 | AR103: 0 | AS103: 1 | AT103: 0 | AU103: 1 | AV103: 0 | AW103: 0 | AX103: 0
B104: 99 | C104: 5 | D104: 2 | E104: 3 | F104: 2 | G104: 1 | H104: 1 | I104: 0 | J104: 0 | K104: 0 | L104: 3 | M104: 1 | N104: 2 | O104: 0 | P104: 0 | Q104: 0 | R104: 0 | S104: 0 | T104: 0 | U104: 0 | V104: 0 | W104: 0 | X104: 0 | Y104: 0 | Z104: 0 | AA104: 0 | AB104: 0 | AC104: 0 | AD104: 0 | AE104: 0 | AF104: 0 | AG104: 0 | AH104: 0 | AI104: 0 | AJ104: 0 | AK104: 0 | AL104: 0 | AM104: 0 | AN104: 0 | AO104: 0 | AP104: 0 | AQ104: 0 | AR104: 0 | AS104: 0 | AT104: 0 | AU104: 0 | AV104: 0 | AW104: 0 | AX104: 0
B105: 100 | C105: 5 | D105: 1 | E105: 4 | F105: 2 | G105: 0 | H105: 2 | I105: 0 | J105: 0 | K105: 0 | L105: 2 | M105: 0 | N105: 2 | O105: 0 | P105: 0 | Q105: 0 | R105: 0 | S105: 0 | T105: 0 | U105: 0 | V105: 0 | W105: 0 | X105: 0 | Y105: 0 | Z105: 0 | AA105: 0 | AB105: 0 | AC105: 0 | AD105: 1 | AE105: 1 | AF105: 0 | AG105: 0 | AH105: 0 | AI105: 0 | AJ105: 0 | AK105: 0 | AL105: 0 | AM105: 0 | AN105: 0 | AO105: 0 | AP105: 0 | AQ105: 0 | AR105: 0 | AS105: 0 | AT105: 0 | AU105: 0 | AV105: 0 | AW105: 0 | AX105: 0
B106: 101 | C106: 5 | D106: 1 | E106: 4 | F106: 1 | G106: 0 | H106: 1 | I106: 1 | J106: 0 | K106: 1 | L106: 3 | M106: 1 | N106: 2 | O106: 0 | P106: 0 | Q106: 0 | R106: 0 | S106: 0 | T106: 0 | U106: 0 | V106: 0 | W106: 0 | X106: 0 | Y106: 0 | Z106: 0 | AA106: 0 | AB106: 0 | AC106: 0 | AD106: 0 | AE106: 0 | AF106: 0 | AG106: 0 | AH106: 0 | AI106: 0 | AJ106: 0 | AK106: 0 | AL106: 0 | AM106: 0 | AN106: 0 | AO106: 0 | AP106: 0 | AQ106: 0 | AR106: 0 | AS106: 0 | AT106: 0 | AU106: 0 | AV106: 0 | AW106: 0 | AX106: 0
B107: 102 | C107: 2 | D107: 0 | E107: 2 | F107: 0 | G107: 0 | H107: 0 | I107: 0 | J107: 0 | K107: 0 | L107: 2 | M107: 0 | N107: 2 | O107: 0 | P107: 0 | Q107: 0 | R107: 0 | S107: 0 | T107: 0 | U107: 0 | V107: 0 | W107: 0 | X107: 0 | Y107: 0 | Z107: 0 | AA107: 0 | AB107: 0 | AC107: 0 | AD107: 0 | AE107: 0 | AF107: 0 | AG107: 0 | AH107: 0 | AI107: 0 | AJ107: 0 | AK107: 0 | AL107: 0 | AM107: 0 | AN107: 0 | AO107: 0 | AP107: 0 | AQ107: 0 | AR107: 0 | AS107: 0 | AT107: 0 | AU107: 0 | AV107: 0 | AW107: 0 | AX107: 0
B108: 103 | C108: 2 | D108: 1 | E108: 1 | F108: 1 | G108: 1 | H108: 0 | I108: 0 | J108: 0 | K108: 0 | L108: 1 | M108: 0 | N108: 1 | O108: 0 | P108: 0 | Q108: 0 | R108: 0 | S108: 0 | T108: 0 | U108: 0 | V108: 0 | W108: 0 | X108: 0 | Y108: 0 | Z108: 0 | AA108: 0 | AB108: 0 | AC108: 0 | AD108: 0 | AE108: 0 | AF108: 0 | AG108: 0 | AH108: 0 | AI108: 0 | AJ108: 0 | AK108: 0 | AL108: 0 | AM108: 0 | AN108: 0 | AO108: 0 | AP108: 0 | AQ108: 0 | AR108: 0 | AS108: 0 | AT108: 0 | AU108: 0 | AV108: 0 | AW108: 0 | AX108: 0
B109: 104 | C109: 1 | D109: 0 | E109: 1 | F109: 0 | G109: 0 | H109: 0 | I109: 0 | J109: 0 | K109: 0 | L109: 1 | M109: 0 | N109: 1 | O109: 0 | P109: 0 | Q109: 0 | R109: 0 | S109: 0 | T109: 0 | U109: 0 | V109: 0 | W109: 0 | X109: 0 | Y109: 0 | Z109: 0 | AA109: 0 | AB109: 0 | AC109: 0 | AD109: 0 | AE109: 0 | AF109: 0 | AG109: 0 | AH109: 0 | AI109: 0 | AJ109: 0 | AK109: 0 | AL109: 0 | AM109: 0 | AN109: 0 | AO109: 0 | AP109: 0 | AQ109: 0 | AR109: 0 | AS109: 0 | AT109: 0 | AU109: 0 | AV109: 0 | AW109: 0 | AX109: 0
B110: 105 | C110: 1 | D110: 0 | E110: 1 | F110: 0 | G110: 0 | H110: 0 | I110: 0 | J110: 0 | K110: 0 | L110: 1 | M110: 0 | N110: 1 | O110: 0 | P110: 0 | Q110: 0 | R110: 0 | S110: 0 | T110: 0 | U110: 0 | V110: 0 | W110: 0 | X110: 0 | Y110: 0 | Z110: 0 | AA110: 0 | AB110: 0 | AC110: 0 | AD110: 0 | AE110: 0 | AF110: 0 | AG110: 0 | AH110: 0 | AI110: 0 | AJ110: 0 | AK110: 0 | AL110: 0 | AM110: 0 | AN110: 0 | AO110: 0 | AP110: 0 | AQ110: 0 | AR110: 0 | AS110: 0 | AT110: 0 | AU110: 0 | AV110: 0 | AW110: 0 | AX110: 0

Sheet Sheet1 (hidden)
A1: 구산동 | B1: 2238
A2: 역촌동 | B2: 2143
A3: 진관동 | B3: 1968
A4: 불광1동 | B4: 1720
A5: 녹번동 | B5: 1641
A6: 불광2동 | B6: 1442
A7: 응암3동 | B7: 1327
A8: 응암1동 | B8: 1326
A9: 대조동 | B9: 1230
A10: 신사1동 | B10: 1229
A11: 갈현2동 | B11: 1204
A12: 갈현1동 | B12: 1046
A13: 응암2동 | B13: 987
A14: 신사2동 | B14: 927
A15: 증산동 | B15: 703
A16: 수색동 | B16: 623

Sheet Sheet2 (hidden)
A1: 은평구 동별 장애인현황(유형별) (2024. 3월말)
A2: 동별 | B2: 합계 | E2: 지적 | H2: 자폐 | K2: 발달장애인 | N2: 발달장애인비율
B3: 합계 | C3: 남성 | D3: 여성 | E3: 소계 | F3: 남성 | G3: 여성 | H3: 소계 | I3: 남성 | J3: 여성 | K3: 소계 | L3: 남성 | M3: 여성
A4: 합 계 | B4: =C4+D4 -> 21369 | C4: =SUM(C5:C20) -> 12444 | D4: =SUM(D5:D20) -> 8925 | E4: =F4+G4 -> 1875 | F4: =SUM(F5:F20) -> 1231 | G4: =SUM(G5:G20) -> 644 | H4: =I4+J4 -> 473 | I4: =SUM(I5:I20) -> 395 | J4: =SUM(J5:J20) -> 78 | K4: =L4+M4 -> 2348 | L4: =F4+I4 -> 1626 | M4: =G4+J4 -> 722 | N4: =K4/B4 -> 0.1098787964
A5: 녹번동 | B5: =C5+D5 -> 1623 | C5: =유형별!C5 -> 926 | D5: =유형별!D5 -> 697 | E5: =F5+G5 -> 117 | F5: =유형별!R5 -> 73 | G5: =유형별!S5 -> 44 | H5: =I5+J5 -> 22 | I5: =유형별!X5 -> 16 | J5: =유형별!Y5 -> 6 | K5: =E5+H5 -> 139 | L5: =F5+I5 -> 89 | M5: =G5+J5 -> 50 | N5: 0.08564386938
A6: 불광1동 | B6: 1625 | C6: =유형별!C6 -> 914 | D6: =유형별!D6 -> 711 | E6: 104 | F6: =유형별!R6 -> 59 | G6: =유형별!S6 -> 45 | H6: 29 | I6: =유형별!X6 -> 25 | J6: =유형별!Y6 -> 4 | K6: 133 | L6: 84 | M6: 49 | N6: 0.08184615385
A7: 불광2동 | B7: 1427 | C7: =유형별!C7 -> 845 | D7: =유형별!D7 -> 582 | E7: 112 | F7: =유형별!R7 -> 70 | G7: =유형별!S7 -> 42 | H7: 26 | I7: =유형별!X7 -> 26 | J7: =유형별!Y7 -> 0 | K7: 138 | L7: 96 | M7: 42 | N7: 0.09670637701
A8: 갈현1동 | B8: 689 | C8: =유형별!C8 -> 383 | D8: =유형별!D8 -> 306 | E8: 56 | F8: =유형별!R8 -> 34 | G8: =유형별!S8 -> 22 | H8: 15 | I8: =유형별!X8 -> 13 | J8: =유형별!Y8 -> 2 | K8: 71 | L8: 47 | M8: 24 | N8: 0.1030478955 | R8: =2206/21767 -> 0.1013460743
A9: 갈현2동 | B9: 1274 | C9: =유형별!C9 -> 739 | D9: =유형별!D9 -> 535 | E9: 116 | F9: =유형별!R9 -> 71 | G9: =유형별!S9 -> 45 | H9: 21 | I9: =유형별!X9 -> 15 | J9: =유형별!Y9 -> 6 | K9: 137 | L9: 86 | M9: 51 | N9: 0.1075353218
A10: 구산동 | B10: 2127 | C10: =유형별!C10 -> 1469 | D10: =유형별!D10 -> 658 | E10: 396 | F10: =유형별!R10 -> 307 | G10: =유형별!S10 -> 89 | H10: 44 | I10: =유형별!X10 -> 37 | J10: =유형별!Y10 -> 7 | K10: 440 | L10: 344 | M10: 96 | N10: 0.2068641279
A11: 대조동 | B11: 1219 | C11: =유형별!C11 -> 702 | D11: =유형별!D11 -> 517 | E11: 67 | F11: =유형별!R11 -> 46 | G11: =유형별!S11 -> 21 | H11: 25 | I11: =유형별!X11 -> 20 | J11: =유형별!Y11 -> 5 | K11: 92 | L11: 66 | M11: 26 | N11: 0.07547169811
A12: 응암1동 | B12: 1323 | C12: =유형별!C12 -> 727 | D12: =유형별!D12 -> 596 | E12: 70 | F12: =유형별!R12 -> 43 | G12: =유형별!S12 -> 27 | H12: 29 | I12: =유형별!X12 -> 25 | J12: =유형별!Y12 -> 4 | K12: 99 | L12: 68 | M12: 31 | N12: 0.07482993197
A13: 응암2동 | B13: 975 | C13: =유형별!C13 -> 538 | D13: =유형별!D13 -> 437 | E13: 69 | F13: =유형별!R13 -> 44 | G13: =유형별!S13 -> 25 | H13: 36 | I13: =유형별!X13 -> 31 | J13: =유형별!Y13 -> 5 | K13: 105 | L13: 75 | M13: 30 | N13: 0.1076923077
A14: 응암3동 | B14: 1302 | C14: =유형별!C14 -> 737 | D14: =유형별!D14 -> 565 | E14: 90 | F14: =유형별!R14 -> 60 | G14: =유형별!S14 -> 30 | H14: 18 | I14: =유형별!X14 -> 14 | J14: =유형별!Y14 -> 4 | K14: 108 | L14: 74 | M14: 34 | N14: 0.08294930876
A15: 역촌동 | B15: 2141 | C15: =유형별!C15 -> 1198 | D15: =유형별!D15 -> 943 | E15: 196 | F15: =유형별!R15 -> 125 | G15: =유형별!S15 -> 71 | H15: 39 | I15: =유형별!X15 -> 32 | J15: =유형별!Y15 -> 7 | K15: 235 | L15: 157 | M15: 78 | N15: 0.1097617936
A16: 신사1동 | B16: 1237 | C16: =유형별!C16 -> 745 | D16: =유형별!D16 -> 492 | E16: 148 | F16: =유형별!R16 -> 86 | G16: =유형별!S16 -> 62 | H16: 25 | I16: =유형별!X16 -> 20 | J16: =유형별!Y16 -> 5 | K16: 173 | L16: 106 | M16: 67 | N16: 0.1398544867
A17: 신사2동 | B17: 892 | C17: =유형별!C17 -> 513 | D17: =유형별!D17 -> 379 | E17: 84 | F17: =유형별!R17 -> 48 | G17: =유형별!S17 -> 36 | H17: 21 | I17: =유형별!X17 -> 17 | J17: =유형별!Y17 -> 4 | K17: 105 | L17: 65 | M17: 40 | N17: 0.1177130045
A18: 증산동 | B18: 756 | C18: =유형별!C18 -> 443 | D18: =유형별!D18 -> 313 | E18: 52 | F18: =유형별!R18 -> 34 | G18: =유형별!S18 -> 18 | H18: 17 | I18: =유형별!X18 -> 17 | J18: =유형별!Y18 -> 0 | K18: 69 | L18: 51 | M18: 18 | N18: 0.09126984127
A19: 수색동 | B19: 823 | C19: =유형별!C19 -> 449 | D19: =유형별!D19 -> 374 | E19: 67 | F19: =유형별!R19 -> 45 | G19: =유형별!S19 -> 22 | H19: 24 | I19: =유형별!X19 -> 20 | J19: =유형별!Y19 -> 4 | K19: 91 | L19: 65 | M19: 26 | N19: 0.1105710814
A20: 진관동 | B20: 1936 | C20: =유형별!C20 -> 1116 | D20: =유형별!D20 -> 820 | E20: 131 | F20: =유형별!R20 -> 86 | G20: =유형별!S20 -> 45 | H20: 82 | I20: =유형별!X20 -> 67 | J20: =유형별!Y20 -> 15 | K20: 213 | L20: 153 | M20: 60 | N20: 0.1100206612
A22: *발달장애인 수는 2,206명으로 전체 장애인의 10.1%

Sheet Sheet3 (hidden)
A2: 자치구 | B2: 장애유형 | C2: 2023 | G2: 자치구 | H2: 장애유형 | I2: 2022 | M2: 자치구 | N2: 장애유형 | O2: 2021
C3: 계 | D3: 남 | E3: 여 | I3: 계 | J3: 남 | K3: 여 | O3: 계 | P3: 남 | Q3: 여
A4: 은평구 | B4: 합 계 | C4: 21602 | D4: 12604 | E4: 8998 | G4: 은평구 | H4: 합 계 | I4: =SUM(I5:I19) -> 21753 | J4: =SUM(J5:J19) -> 12687 | K4: 9066 | M4: 은평구 | N4: 합 계 | O4: 21753 | P4: 12704 | Q4: 9049
B5: 지체 | C5: 8636 | D5: 4714 | E5: 3922 | H5: 지체 | I5: 8837 | J5: 4842 | K5: 3995 | N5: 지체 | O5: 8917 | P5: 4897 | Q5: 4020
B6: 시각 | C6: 2265 | D6: 1340 | E6: 925 | H6: 시각 | I6: 2274 | J6: 1364 | K6: 910 | N6: 시각 | O6: 2315 | P6: 1387 | Q6: 928
B7: 청각 | C7: 3350 | D7: 1869 | E7: 1481 | H7: 청각 | I7: 3350 | J7: 1853 | K7: 1497 | N7: 청각 | O7: 3282 | P7: 1814 | Q7: 1468
B8: 언어 | C8: 173 | D8: 124 | E8: 49 | H8: 언어 | I8: 181 | J8: 134 | K8: 47 | N8: 언어 | O8: 177 | P8: 129 | Q8: 48
B9: 지적 | C9: 1863 | D9: 1222 | E9: 641 | H9: 지적 | I9: 1828 | J9: 1200 | K9: 628 | N9: 지적 | O9: 1805 | P9: 1185 | Q9: 620
B10: 뇌병변 | C10: 2188 | D10: 1307 | E10: 881 | H10: 뇌병변 | I10: 2218 | J10: 1318 | K10: 900 | N10: 뇌병변 | O10: 2244 | P10: 1349 | Q10: 895
B11: 자폐성 | C11: 450 | D11: 377 | E11: 73 | H11: 자폐성 | I11: 396 | J11: 333 | K11: 63 | N11: 자폐성 | O11: 355 | P11: 298 | Q11: 57
B12: 정신 | C12: 1137 | D12: 696 | E12: 441 | H12: 정신 | I12: 1148 | J12: 705 | K12: 443 | N12: 정신 | O12: 1162 | P12: 718 | Q12: 444
B13: 신장 | C13: 928 | D13: 569 | E13: 359 | H13: 신장 | I13: 894 | J13: 542 | K13: 352 | N13: 신장 | O13: 874 | P13: 533 | Q13: 341
B14: 심장 | C14: 49 | D14: 26 | E14: 23 | H14: 심장 | I14: 55 | J14: 24 | K14: 31 | N14: 심장 | O14: 55 | P14: 26 | Q14: 29
B15: 호흡기 | C15: 122 | D15: 88 | E15: 34 | H15: 호흡기 | I15: 120 | J15: 86 | K15: 34 | N15: 호흡기 | O15: 130 | P15: 92 | Q15: 38
B16: 간 | C16: 164 | D16: 109 | E16: 55 | H16: 간 | I16: 168 | J16: 113 | K16: 55 | N16: 간 | O16: 166 | P16: 114 | Q16: 52
B17: 안면 | C17: 25 | D17: 13 | E17: 12 | H17: 안면 | I17: 22 | J17: 11 | K17: 11 | N17: 안면 | O17: 23 | P17: 12 | Q17: 11
B18: 장루.요루 | C18: 187 | D18: 118 | E18: 69 | H18: 장루.요루 | I18: 194 | J18: 126 | K18: 68 | N18: 장루.요루 | O18: 181 | P18: 114 | Q18: 67
B19: 뇌전증 | C19: 65 | D19: 32 | E19: 33 | H19: 뇌전증 | I19: 68 | J19: 36 | K19: 32 | N19: 뇌전증 | O19: 67 | P19: 36 | Q19: 31
C22: 2023 | D22: 2022 | E22: 2021 | G22: 2024 | H22: 2025 | I22: 2026 | J22: 2027 | K22: 2028
A23: 외부신체기능장애 | C23: =SUM(C5,C10,C6,C7,C8,C17) -> 16637 | D23: =SUM(I5,I10,I6,I7,I8,I17) -> 16882 | E23: =SUM(O5,O10,O6,O7,O8,O17) -> 16958 | G23: =C23+C23*$G$29 -> 16478.99841 | H23: =G23+G23*$G$29 -> 16322.49736 | I23: =H23+H23*$G$29 -> 16167.48261 | J23: =I23+I23*$G$29 -> 16013.94002 | K23: =J23+J23*$G$29 -> 15861.85563
A24: 내부기관장애 | C24: =SUM(C13,C14,C16,C15,C18,C19) -> 1515 | D24: =SUM(I13:I16,I18,I19) -> 1499 | E24: =SUM(O13:O16,O18:O19) -> 1473 | G24: =C24+C24*$G$30 -> 1536.4524 | H24: =G24+G24*$G$30 -> 1558.208566 | I24: =H24+H24*$G$30 -> 1580.272799 | J24: =I24+I24*$G$30 -> 1602.649462 | K24: =J24+J24*$G$30 -> 1625.342978
A25: 정신적장애 | C25: =SUM(C9,C12,C11) -> 3450 | D25: =SUM(I9,I11,I12) -> 3372 | E25: =SUM(O9,O11,O12) -> 3322 | G25: =C25+C25*$G$31 -> 3515.8605 | H25: =G25+G25*$G$31 -> 3582.978277 | I25: =H25+H25*$G$31 -> 3651.377332 | J25: =I25+I25*$G$31 -> 3721.082126 | K25: =J25+J25*$G$31 -> 3792.117583
A26: 계 | C26: =SUM(C23:C25) -> 21602 | D26: =SUM(D23:D25) -> 21753 | E26: =SUM(E23:E25) -> 21753 | G26: =SUM(G23:G25) -> 21531.31131 | H26: =SUM(H23:H25) -> 21463.68421 | I26: =SUM(I23:I25) -> 21399.13274 | J26: =SUM(J23:J25) -> 21337.67161 | K26: =SUM(K23:K25) -> 21279.3162
A29: 외부신체기능장애 | C29: =(D23-C23)/D23 -> 0.01451249852 | D29: 0.004481660573 | F29: =(C29+D29)/2 -> 0.009497079546 | G29: -0.009497
A30: 내부기관장애 | C30: -0.01067378252 | D30: -0.01765105227 | F30: =(C30+D30)/2 -> -0.0141624174 | G30: 0.01416
A31: 정신적장애 | C31: -0.0231316726 | D31: -0.01505117399 | F31: =(C31+D31)/2 -> -0.01909142329 | G31: 0.01909
A32: 계
C36: 2024 | D36: 2025 | E36: 2026 | F36: 2027 | G36: 2028
C37: -0.0026
A38: 외부신체기능장애 | B38: 16637 | C38: 16593.7438 | D38: 16550.60007 | E38: 16507.56851 | F38: 16464.64883 | G38: 16421.84074
A39: 내부기관장애 | B39: 1515 | C39: 1511.061 | D39: 1507.132241 | E39: 1503.213698 | F39: 1499.305342 | G39: 1495.407148
A40: 정신적장애 | B40: 3450 | C40: 3441.03 | D40: 3432.083322 | E40: 3423.159905 | F40: 3414.25969 | G40: 3405.382614
B41: 21602 | C41: 21545.8348 | D41: 21489.81563 | E41: 21433.94211 | F41: 21378.21386 | G41: 21322.6305
